Workbook

Sheet SkillConfig
A1: ID | B1: PieceID | C1: power | D1: name | E1: dec | H1: attribute | I1: icon | J1: scriptName | K1: IDGroup | L1: timelineName | M1: cd | N1: SkillType | O1: level | P1: effectValue | Q1: intensifierIndex | R1: addPropertyType | S1: addPropertyValue | T1: PromoteLan | U1: PromoteLanPara
A2: int | B2: int | C2: float | D2: int | E2: int | H2: int | I2: string | J2: string | K2: int | L2: string | M2: int | N2: int | O2: int | P2: float[] | Q2: int[] | R2: int[] | S2: float[] | T2: int | U2: float[]
A4: 技能ID IDGroup+技能等级 901开头是法宝技能 | B4: 对应的碎片ID | C4: 功法强度 基于标准强度的百分比 50=50% | D4: 名称语言表ID | E4: 描述语言表ID | H4: 技能属性 1=金 2=水 4=木 8=火 16=土 | I4: 图标 | J4: 脚本名称 | K4: 技能组 | L4: 技能的timeline表现，没得就不填，这个可以程序填 | M4: 技能在转盘的触发圈速 | N4: 技能类型: 1=主动功法 2=辅助功法 3=法宝技能 4=大道 5=被动功法 | O4: 等级 | P4: 效果值 | Q4: 允许被加强的效果下表 | R4: 属性ID表内对应 101=生命百分比 102=攻击百分比 103=防御百分比 | S4: 具体效果值 | T4: 升星简短描述 | U4: 升星简短描述参数 | W4: 数值1 | X4: 数值2 | Y4: 数值3 | Z4: 数值4 | AA4: 数值5 | AB4: 数值6 | AC4: 数值7
B5: 英雄功法区域
A6: =K6*10+O6-1 -> 10010 | B6: 13001 | C6: 100 | D6: 316 | E6: 326 | F6: 剑诀 | G6: 身体周围幻化出{0}柄细剑，每柄细剑对敌人照成{1}%伤害，如果敌人有debuf状态，则虚剑伤害提升{2}% | H6: 1 | I6: =CONCATENATE("icon_skill_",INT(A6*0.1)) -> icon_skill_1001 | J6: =CONCATENATE("S",K6) -> S1001 | K6: 1001 | L6: jianjue_timeline_TD | M6: 1 | N6: 1 | O6: 1 | P6: =_xlfn.TEXTJOIN(";",1,W6:AC6) -> 6;60;30 | Q6: 2 | R6: 101 | S6: 1 | T6: 722 | U6: 1 | W6: 6 | X6: 60 | Y6: 30
A7: =K7*10+O7-1 -> 10011 | B7: 13001 | C7: 110 | D7: 317 | E7: 327 | F7: 剑诀 | G7: 身体周围幻化出{0}柄细剑，每柄细剑对敌人照成{1}%伤害，如果敌人有debuf状态，则虚剑伤害提升{2}% | H7: 1 | I7: icon_skill_1001 | J7: =CONCATENATE("S",K7) -> S1001 | K7: 1001 | L7: jianjue_timeline_TD | M7: 1 | N7: 1 | O7: 2 | P7: =_xlfn.TEXTJOIN(";",1,W7:AC7) -> 6;60;30 | Q7: 2 | R7: 101 | S7: 2 | T7: 722 | U7: 2 | W7: 6 | X7: 60 | Y7: 30
A8: 10012 | B8: 13001 | C8: 120 | D8: 318 | E8: 328 | F8: 剑诀 | G8: 身体周围幻化出{0}柄细剑，每柄细剑对敌人照成{1}%伤害，如果敌人有debuf状态，则虚剑伤害提升{2}% | H8: 1 | I8: icon_skill_1001 | J8: S1001 | K8: 1001 | L8: jianjue_timeline_TD | M8: 1 | N8: 1 | O8: 3 | P8: 6;60;30 | Q8: 2 | R8: 101 | S8: 3 | T8: 722 | U8: 3 | W8: 6 | X8: 60 | Y8: 30
A9: 10013 | B9: 13001 | C9: 130 | D9: 319 | E9: 329 | F9: 剑诀 | G9: 身体周围幻化出{0}柄细剑，每柄细剑对敌人照成{1}%伤害，如果敌人有debuf状态，则虚剑伤害提升{2}% | H9: 1 | I9: icon_skill_1001 | J9: S1001 | K9: 1001 | L9: jianjue_timeline_TD | M9: 1 | N9: 1 | O9: 4 | P9: 6;60;30 | Q9: 2 | R9: 101 | S9: 4 | T9: 722 | U9: 4 | W9: 6 | X9: 60 | Y9: 30
A10: 10014 | B10: 13001 | C10: 140 | D10: 320 | E10: 330 | F10: 剑诀 | G10: 身体周围幻化出{0}柄细剑，每柄细剑对敌人照成{1}%伤害，如果敌人有debuf状态，则虚剑伤害提升{2}% | H10: 1 | I10: icon_skill_1001 | J10: S1001 | K10: 1001 | L10: jianjue_timeline_TD | M10: 1 | N10: 1 | O10: 5 | P10: 6;60;30 | Q10: 2 | R10: 101 | S10: 5 | T10: 722 | U10: 5 | W10: 6 | X10: 60 | Y10: 30
A11: 10015 | B11: 13001 | C11: 150 | D11: 321 | E11: 331 | F11: 剑诀 | G11: 身体周围幻化出{0}柄细剑，每柄细剑对敌人照成{1}%伤害，如果敌人有debuf状态，则虚剑伤害提升{2}% | H11: 1 | I11: icon_skill_1001 | J11: S1001 | K11: 1001 | L11: jianjue_timeline_TD | M11: 1 | N11: 1 | O11: 6 | P11: 6;60;30 | Q11: 2 | R11: 101 | S11: 6 | T11: 722 | U11: 6 | W11: 6 | X11: 60 | Y11: 30
A12: 10016 | B12: 13001 | C12: 160 | D12: 322 | E12: 332 | F12: 剑诀 | G12: 身体周围幻化出{0}柄细剑，每柄细剑对敌人照成{1}%伤害，如果敌人有debuf状态，则虚剑伤害提升{2}% | H12: 1 | I12: icon_skill_1001 | J12: S1001 | K12: 1001 | L12: jianjue_timeline_TD | M12: 1 | N12: 1 | O12: 7 | P12: 6;60;30 | Q12: 2 | R12: 101 | S12: 7 | T12: 722 | U12: 7 | W12: 6 | X12: 60 | Y12: 30
A13: 10017 | B13: 13001 | C13: 170 | D13: 323 | E13: 333 | F13: 剑诀 | G13: 身体周围幻化出{0}柄细剑，每柄细剑对敌人照成{1}%伤害，如果敌人有debuf状态，则虚剑伤害提升{2}% | H13: 1 | I13: icon_skill_1001 | J13: S1001 | K13: 1001 | L13: jianjue_timeline_TD | M13: 1 | N13: 1 | O13: 8 | P13: 6;60;30 | Q13: 2 | R13: 101 | S13: 8 | T13: 722 | U13: 8 | W13: 6 | X13: 60 | Y13: 30
A14: 10018 | B14: 13001 | C14: 180 | D14: 324 | E14: 334 | F14: 剑诀 | G14: 身体周围幻化出{0}柄细剑，每柄细剑对敌人照成{1}%伤害，如果敌人有debuf状态，则虚剑伤害提升{2}% | H14: 1 | I14: icon_skill_1001 | J14: S1001 | K14: 1001 | L14: jianjue_timeline_TD | M14: 1 | N14: 1 | O14: 9 | P14: 6;60;30 | Q14: 2 | R14: 101 | S14: 9 | T14: 722 | U14: 9 | W14: 6 | X14: 60 | Y14: 30
A15: 10019 | B15: 13001 | C15: 190 | D15: 325 | E15: 335 | F15: 剑诀 | G15: 身体周围幻化出{0}柄细剑，每柄细剑对敌人照成{1}%伤害，如果敌人有debuf状态，则虚剑伤害提升{2}% | H15: 1 | I15: icon_skill_1001 | J15: S1001 | K15: 1001 | L15: jianjue_timeline_TD | M15: 1 | N15: 1 | O15: 10 | P15: 6;60;30 | Q15: 2 | R15: 101 | S15: 10 | T15: 722 | U15: 10 | W15: 6 | X15: 60 | Y15: 30
A17: =K17*10+O17-1 -> 20010 | B17: 13002 | C17: 100 | D17: 336 | E17: 346 | F17: 烈焰斩 | G17: 向前方发出1柄剑，对敌人造成{0}%火系伤害，并有{1}%的概率施加1层灼热 | H17: 2 | I17: icon_skill_10001 | J17: =CONCATENATE("S",K17) -> S2001 | K17: 2001 | L17: lieyanjian_timeline_TD | M17: 1 | N17: 1 | O17: 1 | P17: =_xlfn.TEXTJOIN(";",1,W17:AC17) -> 360;48 | Q17: 1 | R17: 102 | S17: 1 | T17: 723 | U17: 1 | W17: 360 | X17: 48
A18: =K18*10+O18-1 -> 20011 | B18: 13002 | C18: 110 | D18: 337 | E18: 347 | F18: 烈焰斩 | G18: 向前方发出1柄剑，对敌人造成{0}%火系伤害，并有{1}%的概率施加1层灼热 | H18: 2 | I18: icon_skill_10001 | J18: =CONCATENATE("S",K18) -> S2001 | K18: 2001 | L18: lieyanjian_timeline_TD | M18: 1 | N18: 1 | O18: 2 | P18: =_xlfn.TEXTJOIN(";",1,W18:AC18) -> 360;48 | Q18: 1 | R18: 102 | S18: 2 | T18: 723 | U18: 2 | W18: 360 | X18: 48
A19: 20012 | B19: 13002 | C19: 120 | D19: 338 | E19: 348 | F19: 烈焰斩 | G19: 向前方发出1柄剑，对敌人造成{0}%火系伤害，并有{1}%的概率施加1层灼热 | H19: 2 | I19: icon_skill_10001 | J19: S2001 | K19: 2001 | L19: lieyanjian_timeline_TD | M19: 1 | N19: 1 | O19: 3 | P19: 360;48 | Q19: 1 | R19: 102 | S19: 3 | T19: 723 | U19: 3 | W19: 360 | X19: 48
A20: 20013 | B20: 13002 | C20: 130 | D20: 339 | E20: 349 | F20: 烈焰斩 | G20: 向前方发出1柄剑，对敌人造成{0}%火系伤害，并有{1}%的概率施加1层灼热 | H20: 2 | I20: icon_skill_10001 | J20: S2001 | K20: 2001 | L20: lieyanjian_timeline_TD | M20: 1 | N20: 1 | O20: 4 | P20: 360;48 | Q20: 1 | R20: 102 | S20: 4 | T20: 723 | U20: 4 | W20: 360 | X20: 48
A21: 20014 | B21: 13002 | C21: 140 | D21: 340 | E21: 350 | F21: 烈焰斩 | G21: 向前方发出1柄剑，对敌人造成{0}%火系伤害，并有{1}%的概率施加1层灼热 | H21: 2 | I21: icon_skill_10001 | J21: S2001 | K21: 2001 | L21: lieyanjian_timeline_TD | M21: 1 | N21: 1 | O21: 5 | P21: 360;48 | Q21: 1 | R21: 102 | S21: 5 | T21: 723 | U21: 5 | W21: 360 | X21: 48
A22: 20015 | B22: 13002 | C22: 150 | D22: 341 | E22: 351 | F22: 烈焰斩 | G22: 向前方发出1柄剑，对敌人造成{0}%火系伤害，并有{1}%的概率施加1层灼热 | H22: 2 | I22: icon_skill_10001 | J22: S2001 | K22: 2001 | L22: lieyanjian_timeline_TD | M22: 1 | N22: 1 | O22: 6 | P22: 360;48 | Q22: 1 | R22: 102 | S22: 6 | T22: 723 | U22: 6 | W22: 360 | X22: 48
A23: 20016 | B23: 13002 | C23: 160 | D23: 342 | E23: 352 | F23: 烈焰斩 | G23: 向前方发出1柄剑，对敌人造成{0}%火系伤害，并有{1}%的概率施加1层灼热 | H23: 2 | I23: icon_skill_10001 | J23: S2001 | K23: 2001 | L23: lieyanjian_timeline_TD | M23: 1 | N23: 1 | O23: 7 | P23: 360;48 | Q23: 1 | R23: 102 | S23: 7 | T23: 723 | U23: 7 | W23: 360 | X23: 48
A24: 20017 | B24: 13002 | C24: 170 | D24: 343 | E24: 353 | F24: 烈焰斩 | G24: 向前方发出1柄剑，对敌人造成{0}%火系伤害，并有{1}%的概率施加1层灼热 | H24: 2 | I24: icon_skill_10001 | J24: S2001 | K24: 2001 | L24: lieyanjian_timeline_TD | M24: 1 | N24: 1 | O24: 8 | P24: 360;48 | Q24: 1 | R24: 102 | S24: 8 | T24: 723 | U24: 8 | W24: 360 | X24: 48
A25: 20018 | B25: 13002 | C25: 180 | D25: 344 | E25: 354 | F25: 烈焰斩 | G25: 向前方发出1柄剑，对敌人造成{0}%火系伤害，并有{1}%的概率施加1层灼热 | H25: 2 | I25: icon_skill_10001 | J25: S2001 | K25: 2001 | L25: lieyanjian_timeline_TD | M25: 1 | N25: 1 | O25: 9 | P25: 360;48 | Q25: 1 | R25: 102 | S25: 9 | T25: 723 | U25: 9 | W25: 360 | X25: 48
A26: 20019 | B26: 13002 | C26: 190 | D26: 345 | E26: 355 | F26: 烈焰斩 | G26: 向前方发出1柄剑，对敌人造成{0}%火系伤害，并有{1}%的概率施加1层灼热 | H26: 2 | I26: icon_skill_10001 | J26: S2001 | K26: 2001 | L26: lieyanjian_timeline_TD | M26: 1 | N26: 1 | O26: 10 | P26: 360;48 | Q26: 1 | R26: 102 | S26: 10 | T26: 723 | U26: 10 | W26: 360 | X26: 48
A28: =K28*10+O28-1 -> 11010 | B28: 13003 | C28: 100 | D28: =D17+20 -> 356 | E28: =E17+20 -> 366 | F28: 瘴影千丝术 | G28: 发出{0}条细细的毒针，每颗针对敌人照成{1}%金系伤害，每颗针有{2}%概率施加1层毒 | H28: 1 | I28: icon_skill_40001 | J28: =CONCATENATE("S",K28) -> S1101 | K28: 1101 | L28: duzhen_timeline_TD | M28: 1 | N28: 1 | O28: 1 | P28: =_xlfn.TEXTJOIN(";",1,W28:AC28) -> 2;180;24 | Q28: 2 | R28: 103 | S28: 1 | T28: 724 | U28: 1 | W28: 2 | X28: 180 | Y28: 24
A29: =K29*10+O29-1 -> 11011 | B29: 13003 | C29: 110 | D29: =D18+20 -> 357 | E29: 367 | F29: 瘴影千丝术 | G29: 发出{0}条细细的毒针，每颗针对敌人照成{1}%金系伤害，每颗针有{2}%概率施加1层毒 | H29: 1 | I29: icon_skill_40001 | J29: =CONCATENATE("S",K29) -> S1101 | K29: 1101 | L29: duzhen_timeline_TD | M29: 1 | N29: 1 | O29: 2 | P29: =_xlfn.TEXTJOIN(";",1,W29:AC29) -> 2;180;24 | Q29: 2 | R29: 103 | S29: 2 | T29: 724 | U29: 2 | W29: 2 | X29: 180 | Y29: 24
A30: 11012 | B30: 13003 | C30: 120 | D30: =D19+20 -> 358 | E30: 368 | F30: 瘴影千丝术 | G30: 发出{0}条细细的毒针，每颗针对敌人照成{1}%金系伤害，每颗针有{2}%概率施加1层毒 | H30: 1 | I30: icon_skill_40001 | J30: S1101 | K30: 1101 | L30: duzhen_timeline_TD | M30: 1 | N30: 1 | O30: 3 | P30: 2;180;24 | Q30: 2 | R30: 103 | S30: 3 | T30: 724 | U30: 3 | W30: 2 | X30: 180 | Y30: 24
A31: 11013 | B31: 13003 | C31: 130 | D31: =D20+20 -> 359 | E31: 369 | F31: 瘴影千丝术 | G31: 发出{0}条细细的毒针，每颗针对敌人照成{1}%金系伤害，每颗针有{2}%概率施加1层毒 | H31: 1 | I31: icon_skill_40001 | J31: S1101 | K31: 1101 | L31: duzhen_timeline_TD | M31: 1 | N31: 1 | O31: 4 | P31: 2;180;24 | Q31: 2 | R31: 103 | S31: 4 | T31: 724 | U31: 4 | W31: 2 | X31: 180 | Y31: 24
A32: 11014 | B32: 13003 | C32: 140 | D32: =D21+20 -> 360 | E32: 370 | F32: 瘴影千丝术 | G32: 发出{0}条细细的毒针，每颗针对敌人照成{1}%金系伤害，每颗针有{2}%概率施加1层毒 | H32: 1 | I32: icon_skill_40001 | J32: S1101 | K32: 1101 | L32: duzhen_timeline_TD | M32: 1 | N32: 1 | O32: 5 | P32: 2;180;24 | Q32: 2 | R32: 103 | S32: 5 | T32: 724 | U32: 5 | W32: 2 | X32: 180 | Y32: 24
A33: 11015 | B33: 13003 | C33: 150 | D33: =D22+20 -> 361 | E33: 371 | F33: 瘴影千丝术 | G33: 发出{0}条细细的毒针，每颗针对敌人照成{1}%金系伤害，每颗针有{2}%概率施加1层毒 | H33: 1 | I33: icon_skill_40001 | J33: S1101 | K33: 1101 | L33: duzhen_timeline_TD | M33: 1 | N33: 1 | O33: 6 | P33: 2;180;24 | Q33: 2 | R33: 103 | S33: 6 | T33: 724 | U33: 6 | W33: 2 | X33: 180 | Y33: 24
A34: 11016 | B34: 13003 | C34: 160 | D34: =D23+20 -> 362 | E34: 372 | F34: 瘴影千丝术 | G34: 发出{0}条细细的毒针，每颗针对敌人照成{1}%金系伤害，每颗针有{2}%概率施加1层毒 | H34: 1 | I34: icon_skill_40001 | J34: S1101 | K34: 1101 | L34: duzhen_timeline_TD | M34: 1 | N34: 1 | O34: 7 | P34: 2;180;24 | Q34: 2 | R34: 103 | S34: 7 | T34: 724 | U34: 7 | W34: 2 | X34: 180 | Y34: 24
A35: 11017 | B35: 13003 | C35: 170 | D35: =D24+20 -> 363 | E35: 373 | F35: 瘴影千丝术 | G35: 发出{0}条细细的毒针，每颗针对敌人照成{1}%金系伤害，每颗针有{2}%概率施加1层毒 | H35: 1 | I35: icon_skill_40001 | J35: S1101 | K35: 1101 | L35: duzhen_timeline_TD | M35: 1 | N35: 1 | O35: 8 | P35: 2;180;24 | Q35: 2 | R35: 103 | S35: 8 | T35: 724 | U35: 8 | W35: 2 | X35: 180 | Y35: 24
A36: 11018 | B36: 13003 | C36: 180 | D36: =D25+20 -> 364 | E36: 374 | F36: 瘴影千丝术 | G36: 发出{0}条细细的毒针，每颗针对敌人照成{1}%金系伤害，每颗针有{2}%概率施加1层毒 | H36: 1 | I36: icon_skill_40001 | J36: S1101 | K36: 1101 | L36: duzhen_timeline_TD | M36: 1 | N36: 1 | O36: 9 | P36: 2;180;24 | Q36: 2 | R36: 103 | S36: 9 | T36: 724 | U36: 9 | W36: 2 | X36: 180 | Y36: 24
A37: 11019 | B37: 13003 | C37: 190 | D37: =D26+20 -> 365 | E37: 375 | F37: 瘴影千丝术 | G37: 发出{0}条细细的毒针，每颗针对敌人照成{1}%金系伤害，每颗针有{2}%概率施加1层毒 | H37: 1 | I37: icon_skill_40001 | J37: S1101 | K37: 1101 | L37: duzhen_timeline_TD | M37: 1 | N37: 1 | O37: 10 | P37: 2;180;24 | Q37: 2 | R37: 103 | S37: 10 | T37: 724 | U37: 10 | W37: 2 | X37: 180 | Y37: 24
A39: =K39*10+O39-1 -> 12010 | B39: 13004 | C39: 100 | D39: =D28+20 -> 376 | E39: =E28+20 -> 386 | F39: 雾隐千流法 | G39: 身体散发出一团迷雾。从迷雾中飞出{0}个冰球，每个冰球对敌人照成{1}%伤害，并有{2}%概率施加1层寒气 | H39: 4 | I39: icon_skill_40005 | J39: =CONCATENATE("S",K39) -> S1201 | K39: 1201 | L39: bingqiu_timeline_TD | M39: 1 | N39: 1 | O39: 1 | P39: =_xlfn.TEXTJOIN(";",1,W39:AC39) -> 3;120;16 | Q39: 2 | R39: 101 | S39: 1 | T39: 722 | U39: 1 | W39: 3 | X39: 120 | Y39: 16
A40: =K40*10+O40-1 -> 12011 | B40: 13004 | C40: 110 | D40: =D29+20 -> 377 | E40: 387 | F40: 雾隐千流法 | G40: 身体散发出一团迷雾。从迷雾中飞出{0}个冰球，每个冰球对敌人照成{1}%伤害，并有{2}%概率施加1层寒气 | H40: 4 | I40: icon_skill_40005 | J40: =CONCATENATE("S",K40) -> S1201 | K40: 1201 | L40: bingqiu_timeline_TD | M40: 1 | N40: 1 | O40: 2 | P40: =_xlfn.TEXTJOIN(";",1,W40:AC40) -> 3;120;16 | Q40: 2 | R40: 101 | S40: 2 | T40: 722 | U40: 2 | W40: 3 | X40: 120 | Y40: 16
A41: 12012 | B41: 13004 | C41: 120 | D41: =D30+20 -> 378 | E41: 388 | F41: 雾隐千流法 | G41: 身体散发出一团迷雾。从迷雾中飞出{0}个冰球，每个冰球对敌人照成{1}%伤害，并有{2}%概率施加1层寒气 | H41: 4 | I41: icon_skill_40005 | J41: S1201 | K41: 1201 | L41: bingqiu_timeline_TD | M41: 1 | N41: 1 | O41: 3 | P41: 3;120;16 | Q41: 2 | R41: 101 | S41: 3 | T41: 722 | U41: 3 | W41: 3 | X41: 120 | Y41: 16
A42: 12013 | B42: 13004 | C42: 130 | D42: =D31+20 -> 379 | E42: 389 | F42: 雾隐千流法 | G42: 身体散发出一团迷雾。从迷雾中飞出{0}个冰球，每个冰球对敌人照成{1}%伤害，并有{2}%概率施加1层寒气 | H42: 4 | I42: icon_skill_40005 | J42: S1201 | K42: 1201 | L42: bingqiu_timeline_TD | M42: 1 | N42: 1 | O42: 4 | P42: 3;120;16 | Q42: 2 | R42: 101 | S42: 4 | T42: 722 | U42: 4 | W42: 3 | X42: 120 | Y42: 16
A43: 12014 | B43: 13004 | C43: 140 | D43: =D32+20 -> 380 | E43: 390 | F43: 雾隐千流法 | G43: 身体散发出一团迷雾。从迷雾中飞出{0}个冰球，每个冰球对敌人照成{1}%伤害，并有{2}%概率施加1层寒气 | H43: 4 | I43: icon_skill_40005 | J43: S1201 | K43: 1201 | L43: bingqiu_timeline_TD | M43: 1 | N43: 1 | O43: 5 | P43: 3;120;16 | Q43: 2 | R43: 101 | S43: 5 | T43: 722 | U43: 5 | W43: 3 | X43: 120 | Y43: 16
A44: 12015 | B44: 13004 | C44: 150 | D44: =D33+20 -> 381 | E44: 391 | F44: 雾隐千流法 | G44: 身体散发出一团迷雾。从迷雾中飞出{0}个冰球，每个冰球对敌人照成{1}%伤害，并有{2}%概率施加1层寒气 | H44: 4 | I44: icon_skill_40005 | J44: S1201 | K44: 1201 | L44: bingqiu_timeline_TD | M44: 1 | N44: 1 | O44: 6 | P44: 3;120;16 | Q44: 2 | R44: 101 | S44: 6 | T44: 722 | U44: 6 | W44: 3 | X44: 120 | Y44: 16
A45: 12016 | B45: 13004 | C45: 160 | D45: =D34+20 -> 382 | E45: 392 | F45: 雾隐千流法 | G45: 身体散发出一团迷雾。从迷雾中飞出{0}个冰球，每个冰球对敌人照成{1}%伤害，并有{2}%概率施加1层寒气 | H45: 4 | I45: icon_skill_40005 | J45: S1201 | K45: 1201 | L45: bingqiu_timeline_TD | M45: 1 | N45: 1 | O45: 7 | P45: 3;120;16 | Q45: 2 | R45: 101 | S45: 7 | T45: 722 | U45: 7 | W45: 3 | X45: 120 | Y45: 16
A46: 12017 | B46: 13004 | C46: 170 | D46: =D35+20 -> 383 | E46: 393 | F46: 雾隐千流法 | G46: 身体散发出一团迷雾。从迷雾中飞出{0}个冰球，每个冰球对敌人照成{1}%伤害，并有{2}%概率施加1层寒气 | H46: 4 | I46: icon_skill_40005 | J46: S1201 | K46: 1201 | L46: bingqiu_timeline_TD | M46: 1 | N46: 1 | O46: 8 | P46: 3;120;16 | Q46: 2 | R46: 101 | S46: 8 | T46: 722 | U46: 8 | W46: 3 | X46: 120 | Y46: 16
A47: 12018 | B47: 13004 | C47: 180 | D47: =D36+20 -> 384 | E47: 394 | F47: 雾隐千流法 | G47: 身体散发出一团迷雾。从迷雾中飞出{0}个冰球，每个冰球对敌人照成{1}%伤害，并有{2}%概率施加1层寒气 | H47: 4 | I47: icon_skill_40005 | J47: S1201 | K47: 1201 | L47: bingqiu_timeline_TD | M47: 1 | N47: 1 | O47: 9 | P47: 3;120;16 | Q47: 2 | R47: 101 | S47: 9 | T47: 722 | U47: 9 | W47: 3 | X47: 120 | Y47: 16
A48: 12019 | B48: 13004 | C48: 190 | D48: =D37+20 -> 385 | E48: 395 | F48: 雾隐千流法 | G48: 身体散发出一团迷雾。从迷雾中飞出{0}个冰球，每个冰球对敌人照成{1}%伤害，并有{2}%概率施加1层寒气 | H48: 4 | I48: icon_skill_40005 | J48: S1201 | K48: 1201 | L48: bingqiu_timeline_TD | M48: 1 | N48: 1 | O48: 10 | P48: 3;120;16 | Q48: 2 | R48: 101 | S48: 10 | T48: 722 | U48: 10 | W48: 3 | X48: 120 | Y48: 16
A50: =K50*10+O50-1 -> 13010 | B50: 13005 | C50: 100 | D50: =D39+20 -> 396 | E50: =E39+20 -> 406 | F50: 碧落幽冥劲 | G50: 发出{0}道寒气冰锥，对敌人照成{1}%伤害，每到冰锥有{2}%概率对敌人施加1层寒气 | H50: 4 | I50: icon_skill_40002 | J50: =CONCATENATE("S",K50) -> S1301 | K50: 1301 | L50: bingzhui_timeline_TD | M50: 1 | N50: 1 | O50: 1 | P50: =_xlfn.TEXTJOIN(";",1,W50:AC50) -> 3;120;16 | Q50: 2 | R50: 102 | S50: 1 | T50: 723 | U50: 1 | W50: 3 | X50: 120 | Y50: 16
A51: =K51*10+O51-1 -> 13011 | B51: 13005 | C51: 110 | D51: =D40+20 -> 397 | E51: 407 | F51: 碧落幽冥劲 | G51: 发出{0}道寒气冰锥，对敌人照成{1}%伤害，每到冰锥有{2}%概率对敌人施加1层寒气 | H51: 4 | I51: icon_skill_40002 | J51: =CONCATENATE("S",K51) -> S1301 | K51: 1301 | L51: bingzhui_timeline_TD | M51: 1 | N51: 1 | O51: 2 | P51: =_xlfn.TEXTJOIN(";",1,W51:AC51) -> 3;120;16 | Q51: 2 | R51: 102 | S51: 2 | T51: 723 | U51: 2 | W51: 3 | X51: 120 | Y51: 16
A52: 13012 | B52: 13005 | C52: 120 | D52: =D41+20 -> 398 | E52: 408 | F52: 碧落幽冥劲 | G52: 发出{0}道寒气冰锥，对敌人照成{1}%伤害，每到冰锥有{2}%概率对敌人施加1层寒气 | H52: 4 | I52: icon_skill_40002 | J52: S1301 | K52: 1301 | L52: bingzhui_timeline_TD | M52: 1 | N52: 1 | O52: 3 | P52: 3;120;16 | Q52: 2 | R52: 102 | S52: 3 | T52: 723 | U52: 3 | W52: 3 | X52: 120 | Y52: 16
A53: 13013 | B53: 13005 | C53: 130 | D53: =D42+20 -> 399 | E53: 409 | F53: 碧落幽冥劲 | G53: 发出{0}道寒气冰锥，对敌人照成{1}%伤害，每到冰锥有{2}%概率对敌人施加1层寒气 | H53: 4 | I53: icon_skill_40002 | J53: S1301 | K53: 1301 | L53: bingzhui_timeline_TD | M53: 1 | N53: 1 | O53: 4 | P53: 3;120;16 | Q53: 2 | R53: 102 | S53: 4 | T53: 723 | U53: 4 | W53: 3 | X53: 120 | Y53: 16
A54: 13014 | B54: 13005 | C54: 140 | D54: =D43+20 -> 400 | E54: 410 | F54: 碧落幽冥劲 | G54: 发出{0}道寒气冰锥，对敌人照成{1}%伤害，每到冰锥有{2}%概率对敌人施加1层寒气 | H54: 4 | I54: icon_skill_40002 | J54: S1301 | K54: 1301 | L54: bingzhui_timeline_TD | M54: 1 | N54: 1 | O54: 5 | P54: 3;120;16 | Q54: 2 | R54: 102 | S54: 5 | T54: 723 | U54: 5 | W54: 3 | X54: 120 | Y54: 16
A55: 13015 | B55: 13005 | C55: 150 | D55: =D44+20 -> 401 | E55: 411 | F55: 碧落幽冥劲 | G55: 发出{0}道寒气冰锥，对敌人照成{1}%伤害，每到冰锥有{2}%概率对敌人施加1层寒气 | H55: 4 | I55: icon_skill_40002 | J55: S1301 | K55: 1301 | L55: bingzhui_timeline_TD | M55: 1 | N55: 1 | O55: 6 | P55: 3;120;16 | Q55: 2 | R55: 102 | S55: 6 | T55: 723 | U55: 6 | W55: 3 | X55: 120 | Y55: 16
A56: 13016 | B56: 13005 | C56: 160 | D56: =D45+20 -> 402 | E56: 412 | F56: 碧落幽冥劲 | G56: 发出{0}道寒气冰锥，对敌人照成{1}%伤害，每到冰锥有{2}%概率对敌人施加1层寒气 | H56: 4 | I56: icon_skill_40002 | J56: S1301 | K56: 1301 | L56: bingzhui_timeline_TD | M56: 1 | N56: 1 | O56: 7 | P56: 3;120;16 | Q56: 2 | R56: 102 | S56: 7 | T56: 723 | U56: 7 | W56: 3 | X56: 120 | Y56: 16
A57: 13017 | B57: 13005 | C57: 170 | D57: =D46+20 -> 403 | E57: 413 | F57: 碧落幽冥劲 | G57: 发出{0}道寒气冰锥，对敌人照成{1}%伤害，每到冰锥有{2}%概率对敌人施加1层寒气 | H57: 4 | I57: icon_skill_40002 | J57: S1301 | K57: 1301 | L57: bingzhui_timeline_TD | M57: 1 | N57: 1 | O57: 8 | P57: 3;120;16 | Q57: 2 | R57: 102 | S57: 8 | T57: 723 | U57: 8 | W57: 3 | X57: 120 | Y57: 16
A58: 13018 | B58: 13005 | C58: 180 | D58: =D47+20 -> 404 | E58: 414 | F58: 碧落幽冥劲 | G58: 发出{0}道寒气冰锥，对敌人照成{1}%伤害，每到冰锥有{2}%概率对敌人施加1层寒气 | H58: 4 | I58: icon_skill_40002 | J58: S1301 | K58: 1301 | L58: bingzhui_timeline_TD | M58: 1 | N58: 1 | O58: 9 | P58: 3;120;16 | Q58: 2 | R58: 102 | S58: 9 | T58: 723 | U58: 9 | W58: 3 | X58: 120 | Y58: 16
A59: 13019 | B59: 13005 | C59: 190 | D59: =D48+20 -> 405 | E59: 415 | F59: 碧落幽冥劲 | G59: 发出{0}道寒气冰锥，对敌人照成{1}%伤害，每到冰锥有{2}%概率对敌人施加1层寒气 | H59: 4 | I59: icon_skill_40002 | J59: S1301 | K59: 1301 | L59: bingzhui_timeline_TD | M59: 1 | N59: 1 | O59: 10 | P59: 3;120;16 | Q59: 2 | R59: 102 | S59: 10 | T59: 723 | U59: 10 | W59: 3 | X59: 120 | Y59: 16
B61: 功法强化效果区域
A62: =K62*10+O62-1 -> 5010010 | B62: 13006 | C62: 100 | D62: 416 | E62: 426 | F62: 法宝秘籍 | G62: 法宝秘籍：后方槽位第一个技能在击中目前时为法宝提供{0}%充能 | H62: 0 | I62: icon_skill_30005 | J62: =CONCATENATE("S",K62) -> S501001 | K62: 501001 | M62: 1 | N62: 2 | O62: 1 | P62: =_xlfn.TEXTJOIN(";",1,W62:AC62) -> 15 | Q62: 1 | R62: 103 | S62: 1 | T62: 724 | U62: 1 | W62: 15
A63: =K63*10+O63-1 -> 5010011 | B63: 13006 | C63: 110 | D63: 417 | E63: 427 | F63: 法宝秘籍 | G63: 法宝秘籍：后方槽位第一个技能在击中目前时为法宝提供{0}%充能 | H63: 0 | I63: icon_skill_30005 | J63: =CONCATENATE("S",K63) -> S501001 | K63: 501001 | M63: 1 | N63: 2 | O63: 2 | P63: =_xlfn.TEXTJOIN(";",1,W63:AC63) -> 15 | Q63: 1 | R63: 103 | S63: 2 | T63: 724 | U63: 2 | W63: 15
A64: 5010012 | B64: 13006 | C64: 120 | D64: 418 | E64: 428 | F64: 法宝秘籍 | G64: 法宝秘籍：后方槽位第一个技能在击中目前时为法宝提供{0}%充能 | H64: 0 | I64: icon_skill_30005 | J64: S501001 | K64: 501001 | M64: 1 | N64: 2 | O64: 3 | P64: 15 | Q64: 1 | R64: 103 | S64: 3 | T64: 724 | U64: 3 | W64: 15
A65: 5010013 | B65: 13006 | C65: 130 | D65: 419 | E65: 429 | F65: 法宝秘籍 | G65: 法宝秘籍：后方槽位第一个技能在击中目前时为法宝提供{0}%充能 | H65: 0 | I65: icon_skill_30005 | J65: S501001 | K65: 501001 | M65: 1 | N65: 2 | O65: 4 | P65: 15 | Q65: 1 | R65: 103 | S65: 4 | T65: 724 | U65: 4 | W65: 15
A66: 5010014 | B66: 13006 | C66: 140 | D66: 420 | E66: 430 | F66: 法宝秘籍 | G66: 法宝秘籍：后方槽位第一个技能在击中目前时为法宝提供{0}%充能 | H66: 0 | I66: icon_skill_30005 | J66: S501001 | K66: 501001 | M66: 1 | N66: 2 | O66: 5 | P66: 15 | Q66: 1 | R66: 103 | S66: 5 | T66: 724 | U66: 5 | W66: 15
A67: 5010015 | B67: 13006 | C67: 150 | D67: 421 | E67: 431 | F67: 法宝秘籍 | G67: 法宝秘籍：后方槽位第一个技能在击中目前时为法宝提供{0}%充能 | H67: 0 | I67: icon_skill_30005 | J67: S501001 | K67: 501001 | M67: 1 | N67: 2 | O67: 6 | P67: 15 | Q67: 1 | R67: 103 | S67: 6 | T67: 724 | U67: 6 | W67: 15
A68: 5010016 | B68: 13006 | C68: 160 | D68: 422 | E68: 432 | F68: 法宝秘籍 | G68: 法宝秘籍：后方槽位第一个技能在击中目前时为法宝提供{0}%充能 | H68: 0 | I68: icon_skill_30005 | J68: S501001 | K68: 501001 | M68: 1 | N68: 2 | O68: 7 | P68: 15 | Q68: 1 | R68: 103 | S68: 7 | T68: 724 | U68: 7 | W68: 15
A69: 5010017 | B69: 13006 | C69: 170 | D69: 423 | E69: 433 | F69: 法宝秘籍 | G69: 法宝秘籍：后方槽位第一个技能在击中目前时为法宝提供{0}%充能 | H69: 0 | I69: icon_skill_30005 | J69: S501001 | K69: 501001 | M69: 1 | N69: 2 | O69: 8 | P69: 15 | Q69: 1 | R69: 103 | S69: 8 | T69: 724 | U69: 8 | W69: 15
A70: 5010018 | B70: 13006 | C70: 180 | D70: 424 | E70: 434 | F70: 法宝秘籍 | G70: 法宝秘籍：后方槽位第一个技能在击中目前时为法宝提供{0}%充能 | H70: 0 | I70: icon_skill_30005 | J70: S501001 | K70: 501001 | M70: 1 | N70: 2 | O70: 9 | P70: 15 | Q70: 1 | R70: 103 | S70: 9 | T70: 724 | U70: 9 | W70: 15
A71: 5010019 | B71: 13006 | C71: 190 | D71: 425 | E71: 435 | F71: 法宝秘籍 | G71: 法宝秘籍：后方槽位第一个技能在击中目前时为法宝提供{0}%充能 | H71: 0 | I71: icon_skill_30005 | J71: S501001 | K71: 501001 | M71: 1 | N71: 2 | O71: 10 | P71: 15 | Q71: 1 | R71: 103 | S71: 10 | T71: 724 | U71: 10 | W71: 15
A73: =K73*10+O73-1 -> 5011010 | B73: 13007 | C73: 100 | D73: =D62+20 -> 436 | E73: =E62+20 -> 446 | F73: 双生面具 | G73: 前后方法宝如果相生则双生效果增强{0}%，（具体效果值取决于技能） | H73: 0 | I73: icon_skill_20004 | J73: =CONCATENATE("S",K73) -> S501101 | K73: 501101 | M73: 1 | N73: 2 | O73: 1 | P73: 15 | Q73: 1 | R73: 101 | S73: 1 | T73: 722 | U73: 1
A74: =K74*10+O74-1 -> 5011011 | B74: 13007 | C74: 110 | D74: =D63+20 -> 437 | E74: 447 | F74: 双生面具 | G74: 前后方法宝如果相生则双生效果增强{0}%，（具体效果值取决于技能） | H74: 0 | I74: icon_skill_20004 | J74: =CONCATENATE("S",K74) -> S501101 | K74: 501101 | M74: 1 | N74: 2 | O74: 2 | P74: 15 | Q74: 1 | R74: 101 | S74: 2 | T74: 722 | U74: 2
A75: 5011012 | B75: 13007 | C75: 120 | D75: =D64+20 -> 438 | E75: 448 | F75: 双生面具 | G75: 前后方法宝如果相生则双生效果增强{0}%，（具体效果值取决于技能） | H75: 0 | I75: icon_skill_20004 | J75: S501101 | K75: 501101 | M75: 1 | N75: 2 | O75: 3 | P75: 15 | Q75: 1 | R75: 101 | S75: 3 | T75: 722 | U75: 3
A76: 5011013 | B76: 13007 | C76: 130 | D76: =D65+20 -> 439 | E76: 449 | F76: 双生面具 | G76: 前后方法宝如果相生则双生效果增强{0}%，（具体效果值取决于技能） | H76: 0 | I76: icon_skill_20004 | J76: S501101 | K76: 501101 | M76: 1 | N76: 2 | O76: 4 | P76: 15 | Q76: 1 | R76: 101 | S76: 4 | T76: 722 | U76: 4
A77: 5011014 | B77: 13007 | C77: 140 | D77: =D66+20 -> 440 | E77: 450 | F77: 双生面具 | G77: 前后方法宝如果相生则双生效果增强{0}%，（具体效果值取决于技能） | H77: 0 | I77: icon_skill_20004 | J77: S501101 | K77: 501101 | M77: 1 | N77: 2 | O77: 5 | P77: 15 | Q77: 1 | R77: 101 | S77: 5 | T77: 722 | U77: 5
A78: 5011015 | B78: 13007 | C78: 150 | D78: =D67+20 -> 441 | E78: 451 | F78: 双生面具 | G78: 前后方法宝如果相生则双生效果增强{0}%，（具体效果值取决于技能） | H78: 0 | I78: icon_skill_20004 | J78: S501101 | K78: 501101 | M78: 1 | N78: 2 | O78: 6 | P78: 15 | Q78: 1 | R78: 101 | S78: 6 | T78: 722 | U78: 6
A79: 5011016 | B79: 13007 | C79: 160 | D79: =D68+20 -> 442 | E79: 452 | F79: 双生面具 | G79: 前后方法宝如果相生则双生效果增强{0}%，（具体效果值取决于技能） | H79: 0 | I79: icon_skill_20004 | J79: S501101 | K79: 501101 | M79: 1 | N79: 2 | O79: 7 | P79: 15 | Q79: 1 | R79: 101 | S79: 7 | T79: 722 | U79: 7
A80: 5011017 | B80: 13007 | C80: 170 | D80: =D69+20 -> 443 | E80: 453 | F80: 双生面具 | G80: 前后方法宝如果相生则双生效果增强{0}%，（具体效果值取决于技能） | H80: 0 | I80: icon_skill_20004 | J80: S501101 | K80: 501101 | M80: 1 | N80: 2 | O80: 8 | P80: 15 | Q80: 1 | R80: 101 | S80: 8 | T80: 722 | U80: 8
A81: 5011018 | B81: 13007 | C81: 180 | D81: =D70+20 -> 444 | E81: 454 | F81: 双生面具 | G81: 前后方法宝如果相生则双生效果增强{0}%，（具体效果值取决于技能） | H81: 0 | I81: icon_skill_20004 | J81: S501101 | K81: 501101 | M81: 1 | N81: 2 | O81: 9 | P81: 15 | Q81: 1 | R81: 101 | S81: 9 | T81: 722 | U81: 9
A82: 5011019 | B82: 13007 | C82: 190 | D82: =D71+20 -> 445 | E82: 455 | F82: 双生面具 | G82: 前后方法宝如果相生则双生效果增强{0}%，（具体效果值取决于技能） | H82: 0 | I82: icon_skill_20004 | J82: S501101 | K82: 501101 | M82: 1 | N82: 2 | O82: 10 | P82: 15 | Q82: 1 | R82: 101 | S82: 10 | T82: 722 | U82: 10
A84: =K84*10+O84-1 -> 5012010 | B84: 13008 | C84: 100 | D84: =D73+20 -> 456 | E84: =E73+20 -> 466 | F84: 火灵丹 | G84: 每层经过火经脉时使火系功法伤害提升{0}%，最多叠加{1}层 | H84: 0 | I84: icon_skill_10002 | J84: =CONCATENATE("S",K84) -> S501201 | K84: 501201 | M84: 1 | N84: 2 | O84: 1 | P84: 10;10 | Q84: 1 | R84: 102 | S84: 1 | T84: 723 | U84: 1
A85: =K85*10+O85-1 -> 5012011 | B85: 13008 | C85: 110 | D85: =D74+20 -> 457 | E85: 467 | F85: 火灵丹 | G85: 每层经过火经脉时使火系功法伤害提升{0}%，最多叠加{1}层 | H85: 0 | I85: icon_skill_10002 | J85: =CONCATENATE("S",K85) -> S501201 | K85: 501201 | M85: 1 | N85: 2 | O85: 2 | P85: 10;10 | Q85: 1 | R85: 102 | S85: 2 | T85: 723 | U85: 2
A86: 5012012 | B86: 13008 | C86: 120 | D86: =D75+20 -> 458 | E86: 468 | F86: 火灵丹 | G86: 每层经过火经脉时使火系功法伤害提升{0}%，最多叠加{1}层 | H86: 0 | I86: icon_skill_10002 | J86: S501201 | K86: 501201 | M86: 1 | N86: 2 | O86: 3 | P86: 10;10 | Q86: 1 | R86: 102 | S86: 3 | T86: 723 | U86: 3
A87: 5012013 | B87: 13008 | C87: 130 | D87: =D76+20 -> 459 | E87: 469 | F87: 火灵丹 | G87: 每层经过火经脉时使火系功法伤害提升{0}%，最多叠加{1}层 | H87: 0 | I87: icon_skill_10002 | J87: S501201 | K87: 501201 | M87: 1 | N87: 2 | O87: 4 | P87: 10;10 | Q87: 1 | R87: 102 | S87: 4 | T87: 723 | U87: 4
A88: 5012014 | B88: 13008 | C88: 140 | D88: =D77+20 -> 460 | E88: 470 | F88: 火灵丹 | G88: 每层经过火经脉时使火系功法伤害提升{0}%，最多叠加{1}层 | H88: 0 | I88: icon_skill_10002 | J88: S501201 | K88: 501201 | M88: 1 | N88: 2 | O88: 5 | P88: 10;10 | Q88: 1 | R88: 102 | S88: 5 | T88: 723 | U88: 5
A89: 5012015 | B89: 13008 | C89: 150 | D89: =D78+20 -> 461 | E89: 471 | F89: 火灵丹 | G89: 每层经过火经脉时使火系功法伤害提升{0}%，最多叠加{1}层 | H89: 0 | I89: icon_skill_10002 | J89: S501201 | K89: 501201 | M89: 1 | N89: 2 | O89: 6 | P89: 10;10 | Q89: 1 | R89: 102 | S89: 6 | T89: 723 | U89: 6
A90: 5012016 | B90: 13008 | C90: 160 | D90: =D79+20 -> 462 | E90: 472 | F90: 火灵丹 | G90: 每层经过火经脉时使火系功法伤害提升{0}%，最多叠加{1}层 | H90: 0 | I90: icon_skill_10002 | J90: S501201 | K90: 501201 | M90: 1 | N90: 2 | O90: 7 | P90: 10;10 | Q90: 1 | R90: 102 | S90: 7 | T90: 723 | U90: 7
A91: 5012017 | B91: 13008 | C91: 170 | D91: =D80+20 -> 463 | E91: 473 | F91: 火灵丹 | G91: 每层经过火经脉时使火系功法伤害提升{0}%，最多叠加{1}层 | H91: 0 | I91: icon_skill_10002 | J91: S501201 | K91: 501201 | M91: 1 | N91: 2 | O91: 8 | P91: 10;10 | Q91: 1 | R91: 102 | S91: 8 | T91: 723 | U91: 8
A92: 5012018 | B92: 13008 | C92: 180 | D92: =D81+20 -> 464 | E92: 474 | F92: 火灵丹 | G92: 每层经过火经脉时使火系功法伤害提升{0}%，最多叠加{1}层 | H92: 0 | I92: icon_skill_10002 | J92: S501201 | K92: 501201 | M92: 1 | N92: 2 | O92: 9 | P92: 10;10 | Q92: 1 | R92: 102 | S92: 9 | T92: 723 | U92: 9
A93: 5012019 | B93: 13008 | C93: 190 | D93: =D82+20 -> 465 | E93: 475 | F93: 火灵丹 | G93: 每层经过火经脉时使火系功法伤害提升{0}%，最多叠加{1}层 | H93: 0 | I93: icon_skill_10002 | J93: S501201 | K93: 501201 | M93: 1 | N93: 2 | O93: 10 | P93: 10;10 | Q93: 1 | R93: 102 | S93: 10 | T93: 723 | U93: 10
A95: =K95*10+O95-1 -> 5013010 | B95: 13009 | C95: 100 | D95: =D84+20 -> 476 | E95: =E84+20 -> 486 | F95: 巨大化 | G95: 后方槽位第一个技能体型巨大化，且在对碰中受到伤害减少{0}% | H95: 0 | I95: icon_skill_20002 | J95: =CONCATENATE("S",K95) -> S501301 | K95: 501301 | M95: 1 | N95: 2 | O95: 1 | P95: 15 | Q95: 1 | R95: 103 | S95: 1 | T95: 724 | U95: 1
A96: =K96*10+O96-1 -> 5013011 | B96: 13009 | C96: 110 | D96: =D85+20 -> 477 | E96: 487 | F96: 巨大化 | G96: 后方槽位第一个技能体型巨大化，且在对碰中受到伤害减少{0}% | H96: 0 | I96: icon_skill_20002 | J96: =CONCATENATE("S",K96) -> S501301 | K96: 501301 | M96: 1 | N96: 2 | O96: 2 | P96: 15 | Q96: 1 | R96: 103 | S96: 2 | T96: 724 | U96: 2
A97: 5013012 | B97: 13009 | C97: 120 | D97: =D86+20 -> 478 | E97: 488 | F97: 巨大化 | G97: 后方槽位第一个技能体型巨大化，且在对碰中受到伤害减少{0}% | H97: 0 | I97: icon_skill_20002 | J97: S501301 | K97: 501301 | M97: 1 | N97: 2 | O97: 3 | P97: 15 | Q97: 1 | R97: 103 | S97: 3 | T97: 724 | U97: 3
A98: 5013013 | B98: 13009 | C98: 130 | D98: =D87+20 -> 479 | E98: 489 | F98: 巨大化 | G98: 后方槽位第一个技能体型巨大化，且在对碰中受到伤害减少{0}% | H98: 0 | I98: icon_skill_20002 | J98: S501301 | K98: 501301 | M98: 1 | N98: 2 | O98: 4 | P98: 15 | Q98: 1 | R98: 103 | S98: 4 | T98: 724 | U98: 4
A99: 5013014 | B99: 13009 | C99: 140 | D99: =D88+20 -> 480 | E99: 490 | F99: 巨大化 | G99: 后方槽位第一个技能体型巨大化，且在对碰中受到伤害减少{0}% | H99: 0 | I99: icon_skill_20002 | J99: S501301 | K99: 501301 | M99: 1 | N99: 2 | O99: 5 | P99: 15 | Q99: 1 | R99: 103 | S99: 5 | T99: 724 | U99: 5
A100: 5013015 | B100: 13009 | C100: 150 | D100: =D89+20 -> 481 | E100: 491 | F100: 巨大化 | G100: 后方槽位第一个技能体型巨大化，且在对碰中受到伤害减少{0}% | H100: 0 | I100: icon_skill_20002 | J100: S501301 | K100: 501301 | M100: 1 | N100: 2 | O100: 6 | P100: 15 | Q100: 1 | R100: 103 | S100: 6 | T100: 724 | U100: 6
A101: 5013016 | B101: 13009 | C101: 160 | D101: =D90+20 -> 482 | E101: 492 | F101: 巨大化 | G101: 后方槽位第一个技能体型巨大化，且在对碰中受到伤害减少{0}% | H101: 0 | I101: icon_skill_20002 | J101: S501301 | K101: 501301 | M101: 1 | N101: 2 | O101: 7 | P101: 15 | Q101: 1 | R101: 103 | S101: 7 | T101: 724 | U101: 7
A102: 5013017 | B102: 13009 | C102: 170 | D102: =D91+20 -> 483 | E102: 493 | F102: 巨大化 | G102: 后方槽位第一个技能体型巨大化，且在对碰中受到伤害减少{0}% | H102: 0 | I102: icon_skill_20002 | J102: S501301 | K102: 501301 | M102: 1 | N102: 2 | O102: 8 | P102: 15 | Q102: 1 | R102: 103 | S102: 8 | T102: 724 | U102: 8
A103: 5013018 | B103: 13009 | C103: 180 | D103: =D92+20 -> 484 | E103: 494 | F103: 巨大化 | G103: 后方槽位第一个技能体型巨大化，且在对碰中受到伤害减少{0}% | H103: 0 | I103: icon_skill_20002 | J103: S501301 | K103: 501301 | M103: 1 | N103: 2 | O103: 9 | P103: 15 | Q103: 1 | R103: 103 | S103: 9 | T103: 724 | U103: 9
A104: 5013019 | B104: 13009 | C104: 190 | D104: =D93+20 -> 485 | E104: 495 | F104: 巨大化 | G104: 后方槽位第一个技能体型巨大化，且在对碰中受到伤害减少{0}% | H104: 0 | I104: icon_skill_20002 | J104: S501301 | K104: 501301 | M104: 1 | N104: 2 | O104: 10 | P104: 15 | Q104: 1 | R104: 103 | S104: 10 | T104: 724 | U104: 10
A106: =K106*10+O106-1 -> 5014010 | B106: 13010 | C106: 100 | D106: =D95+20 -> 496 | E106: =E95+20 -> 506 | F106: 极速齿轮 | G106: 后槽位技能在催动时获得转盘加速{0}%,持续{1}秒 | H106: 0 | I106: icon_skill_10004 | J106: =CONCATENATE("S",K106) -> S501401 | K106: 501401 | M106: 1 | N106: 2 | O106: 1 | P106: 15;6 | Q106: 1 | R106: 101 | S106: 1 | T106: 722 | U106: 1
A107: =K107*10+O107-1 -> 5014011 | B107: 13010 | C107: 110 | D107: =D96+20 -> 497 | E107: 507 | F107: 极速齿轮 | G107: 后槽位技能在催动时获得转盘加速{0}%,持续{1}秒 | H107: 0 | I107: icon_skill_10004 | J107: =CONCATENATE("S",K107) -> S501401 | K107: 501401 | M107: 1 | N107: 2 | O107: 2 | P107: 15;6 | Q107: 1 | R107: 101 | S107: 2 | T107: 722 | U107: 2
A108: 5014012 | B108: 13010 | C108: 120 | D108: =D97+20 -> 498 | E108: 508 | F108: 极速齿轮 | G108: 后槽位技能在催动时获得转盘加速{0}%,持续{1}秒 | H108: 0 | I108: icon_skill_10004 | J108: S501401 | K108: 501401 | M108: 1 | N108: 2 | O108: 3 | P108: 15;6 | Q108: 1 | R108: 101 | S108: 3 | T108: 722 | U108: 3
A109: 5014013 | B109: 13010 | C109: 130 | D109: =D98+20 -> 499 | E109: 509 | F109: 极速齿轮 | G109: 后槽位技能在催动时获得转盘加速{0}%,持续{1}秒 | H109: 0 | I109: icon_skill_10004 | J109: S501401 | K109: 501401 | M109: 1 | N109: 2 | O109: 4 | P109: 15;6 | Q109: 1 | R109: 101 | S109: 4 | T109: 722 | U109: 4
A110: 5014014 | B110: 13010 | C110: 140 | D110: =D99+20 -> 500 | E110: 510 | F110: 极速齿轮 | G110: 后槽位技能在催动时获得转盘加速{0}%,持续{1}秒 | H110: 0 | I110: icon_skill_10004 | J110: S501401 | K110: 501401 | M110: 1 | N110: 2 | O110: 5 | P110: 15;6 | Q110: 1 | R110: 101 | S110: 5 | T110: 722 | U110: 5
A111: 5014015 | B111: 13010 | C111: 150 | D111: =D100+20 -> 501 | E111: 511 | F111: 极速齿轮 | G111: 后槽位技能在催动时获得转盘加速{0}%,持续{1}秒 | H111: 0 | I111: icon_skill_10004 | J111: S501401 | K111: 501401 | M111: 1 | N111: 2 | O111: 6 | P111: 15;6 | Q111: 1 | R111: 101 | S111: 6 | T111: 722 | U111: 6
A112: 5014016 | B112: 13010 | C112: 160 | D112: =D101+20 -> 502 | E112: 512 | F112: 极速齿轮 | G112: 后槽位技能在催动时获得转盘加速{0}%,持续{1}秒 | H112: 0 | I112: icon_skill_10004 | J112: S501401 | K112: 501401 | M112: 1 | N112: 2 | O112: 7 | P112: 15;6 | Q112: 1 | R112: 101 | S112: 7 | T112: 722 | U112: 7
A113: 5014017 | B113: 13010 | C113: 170 | D113: =D102+20 -> 503 | E113: 513 | F113: 极速齿轮 | G113: 后槽位技能在催动时获得转盘加速{0}%,持续{1}秒 | H113: 0 | I113: icon_skill_10004 | J113: S501401 | K113: 501401 | M113: 1 | N113: 2 | O113: 8 | P113: 15;6 | Q113: 1 | R113: 101 | S113: 8 | T113: 722 | U113: 8
A114: 5014018 | B114: 13010 | C114: 180 | D114: =D103+20 -> 504 | E114: 514 | F114: 极速齿轮 | G114: 后槽位技能在催动时获得转盘加速{0}%,持续{1}秒 | H114: 0 | I114: icon_skill_10004 | J114: S501401 | K114: 501401 | M114: 1 | N114: 2 | O114: 9 | P114: 15;6 | Q114: 1 | R114: 101 | S114: 9 | T114: 722 | U114: 9
A115: 5014019 | B115: 13010 | C115: 190 | D115: =D104+20 -> 505 | E115: 515 | F115: 极速齿轮 | G115: 后槽位技能在催动时获得转盘加速{0}%,持续{1}秒 | H115: 0 | I115: icon_skill_10004 | J115: S501401 | K115: 501401 | M115: 1 | N115: 2 | O115: 10 | P115: 15;6 | Q115: 1 | R115: 101 | S115: 10 | T115: 722 | U115: 10
A117: =K117*10+O117-1 -> 5015010 | B117: 13011 | C117: 100 | D117: =D106+20 -> 516 | E117: =E106+20 -> 526 | F117: 崩脉决 | G117: 前方功法照成伤害时有{0}%概率施加一层对应属性的伤势 | H117: 0 | I117: icon_skill_20001 | J117: =CONCATENATE("S",K117) -> S501501 | K117: 501501 | M117: 1 | N117: 2 | O117: 1 | P117: 30 | Q117: 1 | R117: 102 | S117: 1 | T117: 723 | U117: 1
A118: =K118*10+O118-1 -> 5015011 | B118: 13011 | C118: 110 | D118: =D107+20 -> 517 | E118: 527 | F118: 崩脉决 | G118: 前方功法照成伤害时有{0}%概率施加一层对应属性的伤势 | H118: 0 | I118: icon_skill_20001 | J118: =CONCATENATE("S",K118) -> S501501 | K118: 501501 | M118: 1 | N118: 2 | O118: 2 | P118: 30 | Q118: 1 | R118: 102 | S118: 2 | T118: 723 | U118: 2
A119: 5015012 | B119: 13011 | C119: 120 | D119: =D108+20 -> 518 | E119: 528 | F119: 崩脉决 | G119: 前方功法照成伤害时有{0}%概率施加一层对应属性的伤势 | H119: 0 | I119: icon_skill_20001 | J119: S501501 | K119: 501501 | M119: 1 | N119: 2 | O119: 3 | P119: 30 | Q119: 1 | R119: 102 | S119: 3 | T119: 723 | U119: 3
A120: 5015013 | B120: 13011 | C120: 130 | D120: =D109+20 -> 519 | E120: 529 | F120: 崩脉决 | G120: 前方功法照成伤害时有{0}%概率施加一层对应属性的伤势 | H120: 0 | I120: icon_skill_20001 | J120: S501501 | K120: 501501 | M120: 1 | N120: 2 | O120: 4 | P120: 30 | Q120: 1 | R120: 102 | S120: 4 | T120: 723 | U120: 4
A121: 5015014 | B121: 13011 | C121: 140 | D121: =D110+20 -> 520 | E121: 530 | F121: 崩脉决 | G121: 前方功法照成伤害时有{0}%概率施加一层对应属性的伤势 | H121: 0 | I121: icon_skill_20001 | J121: S501501 | K121: 501501 | M121: 1 | N121: 2 | O121: 5 | P121: 30 | Q121: 1 | R121: 102 | S121: 5 | T121: 723 | U121: 5
A122: 5015015 | B122: 13011 | C122: 150 | D122: =D111+20 -> 521 | E122: 531 | F122: 崩脉决 | G122: 前方功法照成伤害时有{0}%概率施加一层对应属性的伤势 | H122: 0 | I122: icon_skill_20001 | J122: S501501 | K122: 501501 | M122: 1 | N122: 2 | O122: 6 | P122: 30 | Q122: 1 | R122: 102 | S122: 6 | T122: 723 | U122: 6
A123: 5015016 | B123: 13011 | C123: 160 | D123: =D112+20 -> 522 | E123: 532 | F123: 崩脉决 | G123: 前方功法照成伤害时有{0}%概率施加一层对应属性的伤势 | H123: 0 | I123: icon_skill_20001 | J123: S501501 | K123: 501501 | M123: 1 | N123: 2 | O123: 7 | P123: 30 | Q123: 1 | R123: 102 | S123: 7 | T123: 723 | U123: 7
A124: 5015017 | B124: 13011 | C124: 170 | D124: =D113+20 -> 523 | E124: 533 | F124: 崩脉决 | G124: 前方功法照成伤害时有{0}%概率施加一层对应属性的伤势 | H124: 0 | I124: icon_skill_20001 | J124: S501501 | K124: 501501 | M124: 1 | N124: 2 | O124: 8 | P124: 30 | Q124: 1 | R124: 102 | S124: 8 | T124: 723 | U124: 8
A125: 5015018 | B125: 13011 | C125: 180 | D125: =D114+20 -> 524 | E125: 534 | F125: 崩脉决 | G125: 前方功法照成伤害时有{0}%概率施加一层对应属性的伤势 | H125: 0 | I125: icon_skill_20001 | J125: S501501 | K125: 501501 | M125: 1 | N125: 2 | O125: 9 | P125: 30 | Q125: 1 | R125: 102 | S125: 9 | T125: 723 | U125: 9
A126: 5015019 | B126: 13011 | C126: 190 | D126: =D115+20 -> 525 | E126: 535 | F126: 崩脉决 | G126: 前方功法照成伤害时有{0}%概率施加一层对应属性的伤势 | H126: 0 | I126: icon_skill_20001 | J126: S501501 | K126: 501501 | M126: 1 | N126: 2 | O126: 10 | P126: 30 | Q126: 1 | R126: 102 | S126: 10 | T126: 723 | U126: 10
B128: 怪物功法区域
A129: 810011 | C129: 100 | D129: 702 | E129: 712 | F129: 怪物技能1 | H129: 1 | J129: S2001 | K129: 81001 | L129: gf_mozhan_timeline_TD | M129: 1 | N129: 1 | O129: 1 | P129: 100 | Q129: 0
A130: 820011 | C130: 100 | D130: 703 | E130: 713 | F130: 怪物技能1 | H130: 2 | J130: S2001 | K130: 82001 | L130: gf_mozhan_timeline_TD | M130: 1 | N130: 1 | O130: 1 | P130: 100 | Q130: 0
A131: 830011 | C131: 100 | D131: 704 | E131: 714 | F131: 怪物技能1 | H131: 8 | J131: S2001 | K131: 83001 | L131: gf_mozhan_timeline_TD | M131: 1 | N131: 1 | O131: 1 | P131: 100 | Q131: 0
A132: 840011 | C132: 100 | D132: 705 | E132: 715 | F132: 怪物技能1 | H132: 16 | J132: S2001 | K132: 84001 | L132: gf_mozhan_timeline_TD | M132: 1 | N132: 1 | O132: 1 | P132: 100 | Q132: 0
A133: 850011 | C133: 100 | D133: 706 | E133: 716 | F133: 怪物技能1 | H133: 1 | J133: S2001 | K133: 85001 | L133: gf_mozhan_timeline_TD | M133: 1 | N133: 1 | O133: 1 | P133: 100 | Q133: 0
A134: 890111 | C134: 100 | D134: 707 | E134: 717 | F134: boss第一个技能 | G134: 伤害很高）(前摇时间长)：很多剑从远处汇聚到boss周围，然后以一字行快速贯穿目标对目标照成{0}伤害，每命中目标肉体{1}次防御削减{2}%，目标肉体{3}次所有伤势+{4} ,如果目标上有剑毅，每丙剑消耗{5}层剑毅让敌人受到{6}额外的伤害 | H134: 1 | J134: S89011 | K134: 89011 | L134: BossSk1_timeline_TD | M134: 1 | N134: 1 | O134: 1 | P134: 50;5;1;10;1;1;20 | Q134: 0
A135: 890121 | C135: 100 | D135: 708 | E135: 718 | F135: boss第一个技能 | G135: （2转，防御型技能）：身体周围围绕多丙剑飞行，可以阻挡敌人的功法.抵挡{0}最大生命值的伤害 | H135: 1 | J135: S89012 | K135: 89012 | L135: BossSk2_timeline_TD | M135: 2 | N135: 1 | O135: 1 | P135: 10 | Q135: 0
A136: 890131 | C136: 100 | D136: 709 | E136: 719 | F136: boss第一个技能 | G136: 剑祖的攻击会让目标受到一层剑毅 | H136: 1 | J136: S89013 | K136: 89013 | M136: 1 | N136: 2 | O136: 1 | P136: 1 | Q136: 0
A137: 890141 | C137: 100 | D137: 710 | E137: 720 | F137: boss第一个技能 | G137: 发射2丙剑，对敌人照成{0}伤害 | H137: 1 | J137: S89014 | K137: 89014 | L137: BossSk4_timeline_TD | M137: 1 | N137: 1 | O137: 1 | P137: 100 | Q137: 0
A138: 890151 | C138: 100 | D138: 711 | E138: 721 | F138: boss第一个技能 | G138: 发射2丙剑，对敌人照成{0}伤害 | H138: 1 | J138: S89015 | K138: 89015 | L138: BossSk4_timeline_TD | M138: 1 | N138: 1 | O138: 1 | P138: 100 | Q138: 0
B139: 法宝区域
A140: =K140*10+O140-1 -> 9010010 | B140: 11001 | C140: 100 | D140: 536 | E140: =D140+10 -> 546 | F140: 法宝测试技能 | G140: 测试法宝功能脚本 | H140: 1 | I140: icon_skill_10003 | J140: =CONCATENATE("S",K140) -> S901001 | K140: 901001 | M140: 1 | N140: 3 | O140: 1 | P140: 100 | Q140: 1 | R140: 101 | S140: 1 | T140: 722 | U140: 1
A141: =K141*10+O141-1 -> 9010011 | B141: 11001 | C141: 110 | D141: =D140+1 -> 537 | E141: =D141+10 -> 547 | F141: 法宝测试技能 | G141: 测试法宝功能脚本 | H141: 1 | I141: icon_skill_10003 | J141: =CONCATENATE("S",K141) -> S901001 | K141: 901001 | M141: 1 | N141: 3 | O141: 2 | P141: 100 | Q141: 1 | R141: 101 | S141: 2 | T141: 722 | U141: 2
A142: 9010012 | B142: 11001 | C142: 120 | D142: =D141+1 -> 538 | E142: 548 | F142: 法宝测试技能 | G142: 测试法宝功能脚本 | H142: 1 | I142: icon_skill_10003 | J142: S901001 | K142: 901001 | M142: 1 | N142: 3 | O142: 3 | P142: 100 | Q142: 1 | R142: 101 | S142: 3 | T142: 722 | U142: 3
A143: 9010013 | B143: 11001 | C143: 130 | D143: 539 | E143: 549 | F143: 法宝测试技能 | G143: 测试法宝功能脚本 | H143: 1 | I143: icon_skill_10003 | J143: S901001 | K143: 901001 | M143: 1 | N143: 3 | O143: 4 | P143: 100 | Q143: 1 | R143: 101 | S143: 4 | T143: 722 | U143: 4
A144: 9010014 | B144: 11001 | C144: 140 | D144: 540 | E144: 550 | F144: 法宝测试技能 | G144: 测试法宝功能脚本 | H144: 1 | I144: icon_skill_10003 | J144: S901001 | K144: 901001 | M144: 1 | N144: 3 | O144: 5 | P144: 100 | Q144: 1 | R144: 101 | S144: 5 | T144: 722 | U144: 5
A145: 9010015 | B145: 11001 | C145: 150 | D145: 541 | E145: 551 | F145: 法宝测试技能 | G145: 测试法宝功能脚本 | H145: 1 | I145: icon_skill_10003 | J145: S901001 | K145: 901001 | M145: 1 | N145: 3 | O145: 6 | P145: 100 | Q145: 1 | R145: 101 | S145: 6 | T145: 722 | U145: 6
A146: 9010016 | B146: 11001 | C146: 160 | D146: 542 | E146: 552 | F146: 法宝测试技能 | G146: 测试法宝功能脚本 | H146: 1 | I146: icon_skill_10003 | J146: S901001 | K146: 901001 | M146: 1 | N146: 3 | O146: 7 | P146: 100 | Q146: 1 | R146: 101 | S146: 7 | T146: 722 | U146: 7
A147: 9010017 | B147: 11001 | C147: 170 | D147: 543 | E147: 553 | F147: 法宝测试技能 | G147: 测试法宝功能脚本 | H147: 1 | I147: icon_skill_10003 | J147: S901001 | K147: 901001 | M147: 1 | N147: 3 | O147: 8 | P147: 100 | Q147: 1 | R147: 101 | S147: 8 | T147: 722 | U147: 8
A148: 9010018 | B148: 11001 | C148: 180 | D148: 544 | E148: 554 | F148: 法宝测试技能 | G148: 测试法宝功能脚本 | H148: 1 | I148: icon_skill_10003 | J148: S901001 | K148: 901001 | M148: 1 | N148: 3 | O148: 9 | P148: 100 | Q148: 1 | R148: 101 | S148: 9 | T148: 722 | U148: 9
A149: 9010019 | B149: 11001 | C149: 190 | D149: 545 | E149: 555 | F149: 法宝测试技能 | G149: 测试法宝功能脚本 | H149: 1 | I149: icon_skill_10003 | J149: S901001 | K149: 901001 | M149: 1 | N149: 3 | O149: 10 | P149: 100 | Q149: 1 | R149: 101 | S149: 10 | T149: 722 | U149: 10
A151: =K151*10+O151-1 -> 9010020 | B151: 11002 | C151: 100 | D151: 556 | E151: =D151+10 -> 566 | F151: 翡翠葫芦 | G151: 战场区域形成一个域。敌人的功法弹道进入域后将降低敌人{0}%的功法弹道速度，持续{1}秒 | H151: 1 | I151: icon_skill_10003 | J151: =CONCATENATE("S",K151) -> S901002 | K151: 901002 | M151: 1 | N151: 3 | O151: 1 | P151: 50;9 | Q151: 1 | R151: 102 | S151: 1 | T151: 723 | U151: 1
A152: =K152*10+O152-1 -> 9010021 | B152: 11002 | C152: 110 | D152: =D151+1 -> 557 | E152: =D152+10 -> 567 | F152: 翡翠葫芦 | G152: 战场区域形成一个域。敌人的功法弹道进入域后将降低敌人{0}%的功法弹道速度，持续{1}秒 | H152: 1 | I152: icon_skill_10003 | J152: =CONCATENATE("S",K152) -> S901002 | K152: 901002 | M152: 1 | N152: 3 | O152: 2 | P152: 50;9 | Q152: 1 | R152: 102 | S152: 2 | T152: 723 | U152: 2
A153: 9010022 | B153: 11002 | C153: 120 | D153: =D152+1 -> 558 | E153: 568 | F153: 翡翠葫芦 | G153: 战场区域形成一个域。敌人的功法弹道进入域后将降低敌人{0}%的功法弹道速度，持续{1}秒 | H153: 1 | I153: icon_skill_10003 | J153: S901002 | K153: 901002 | M153: 1 | N153: 3 | O153: 3 | P153: 50;9 | Q153: 1 | R153: 102 | S153: 3 | T153: 723 | U153: 3
A154: 9010023 | B154: 11002 | C154: 130 | D154: 559 | E154: 569 | F154: 翡翠葫芦 | G154: 战场区域形成一个域。敌人的功法弹道进入域后将降低敌人{0}%的功法弹道速度，持续{1}秒 | H154: 1 | I154: icon_skill_10003 | J154: S901002 | K154: 901002 | M154: 1 | N154: 3 | O154: 4 | P154: 50;9 | Q154: 1 | R154: 102 | S154: 4 | T154: 723 | U154: 4
A155: 9010024 | B155: 11002 | C155: 140 | D155: 560 | E155: 570 | F155: 翡翠葫芦 | G155: 战场区域形成一个域。敌人的功法弹道进入域后将降低敌人{0}%的功法弹道速度，持续{1}秒 | H155: 1 | I155: icon_skill_10003 | J155: S901002 | K155: 901002 | M155: 1 | N155: 3 | O155: 5 | P155: 50;9 | Q155: 1 | R155: 102 | S155: 5 | T155: 723 | U155: 5
A156: 9010025 | B156: 11002 | C156: 150 | D156: 561 | E156: 571 | F156: 翡翠葫芦 | G156: 战场区域形成一个域。敌人的功法弹道进入域后将降低敌人{0}%的功法弹道速度，持续{1}秒 | H156: 1 | I156: icon_skill_10003 | J156: S901002 | K156: 901002 | M156: 1 | N156: 3 | O156: 6 | P156: 50;9 | Q156: 1 | R156: 102 | S156: 6 | T156: 723 | U156: 6
A157: 9010026 | B157: 11002 | C157: 160 | D157: 562 | E157: 572 | F157: 翡翠葫芦 | G157: 战场区域形成一个域。敌人的功法弹道进入域后将降低敌人{0}%的功法弹道速度，持续{1}秒 | H157: 1 | I157: icon_skill_10003 | J157: S901002 | K157: 901002 | M157: 1 | N157: 3 | O157: 7 | P157: 50;9 | Q157: 1 | R157: 102 | S157: 7 | T157: 723 | U157: 7
A158: 9010027 | B158: 11002 | C158: 170 | D158: 563 | E158: 573 | F158: 翡翠葫芦 | G158: 战场区域形成一个域。敌人的功法弹道进入域后将降低敌人{0}%的功法弹道速度，持续{1}秒 | H158: 1 | I158: icon_skill_10003 | J158: S901002 | K158: 901002 | M158: 1 | N158: 3 | O158: 8 | P158: 50;9 | Q158: 1 | R158: 102 | S158: 8 | T158: 723 | U158: 8
A159: 9010028 | B159: 11002 | C159: 180 | D159: 564 | E159: 574 | F159: 翡翠葫芦 | G159: 战场区域形成一个域。敌人的功法弹道进入域后将降低敌人{0}%的功法弹道速度，持续{1}秒 | H159: 1 | I159: icon_skill_10003 | J159: S901002 | K159: 901002 | M159: 1 | N159: 3 | O159: 9 | P159: 50;9 | Q159: 1 | R159: 102 | S159: 9 | T159: 723 | U159: 9
A160: 9010029 | B160: 11002 | C160: 190 | D160: 565 | E160: 575 | F160: 翡翠葫芦 | G160: 战场区域形成一个域。敌人的功法弹道进入域后将降低敌人{0}%的功法弹道速度，持续{1}秒 | H160: 1 | I160: icon_skill_10003 | J160: S901002 | K160: 901002 | M160: 1 | N160: 3 | O160: 10 | P160: 50;9 | Q160: 1 | R160: 102 | S160: 10 | T160: 723 | U160: 10
A162: =K162*10+O162-1 -> 9010030 | B162: 11003 | C162: 100 | D162: 576 | E162: =D162+10 -> 586 | F162: 玄龟盾 | G162: 前方形成一个土系防御盾，抵挡相当于自身生命上限{0}%的伤害 | H162: 1 | I162: icon_skill_10003 | J162: =CONCATENATE("S",K162) -> S901003 | K162: 901003 | M162: 1 | N162: 3 | O162: 1 | P162: 30 | Q162: 1 | R162: 103 | S162: 1 | T162: 724 | U162: 1
A163: =K163*10+O163-1 -> 9010031 | B163: 11003 | C163: 110 | D163: =D162+1 -> 577 | E163: =D163+10 -> 587 | F163: 玄龟盾 | G163: 前方形成一个土系防御盾，抵挡相当于自身生命上限{0}%的伤害 | H163: 1 | I163: icon_skill_10003 | J163: =CONCATENATE("S",K163) -> S901003 | K163: 901003 | M163: 1 | N163: 3 | O163: 2 | P163: 30 | Q163: 1 | R163: 103 | S163: 2 | T163: 724 | U163: 2
A164: 9010032 | B164: 11003 | C164: 120 | D164: =D163+1 -> 578 | E164: 588 | F164: 玄龟盾 | G164: 前方形成一个土系防御盾，抵挡相当于自身生命上限{0}%的伤害 | H164: 1 | I164: icon_skill_10003 | J164: S901003 | K164: 901003 | M164: 1 | N164: 3 | O164: 3 | P164: 30 | Q164: 1 | R164: 103 | S164: 3 | T164: 724 | U164: 3
A165: 9010033 | B165: 11003 | C165: 130 | D165: 579 | E165: 589 | F165: 玄龟盾 | G165: 前方形成一个土系防御盾，抵挡相当于自身生命上限{0}%的伤害 | H165: 1 | I165: icon_skill_10003 | J165: S901003 | K165: 901003 | M165: 1 | N165: 3 | O165: 4 | P165: 30 | Q165: 1 | R165: 103 | S165: 4 | T165: 724 | U165: 4
A166: 9010034 | B166: 11003 | C166: 140 | D166: 580 | E166: 590 | F166: 玄龟盾 | G166: 前方形成一个土系防御盾，抵挡相当于自身生命上限{0}%的伤害 | H166: 1 | I166: icon_skill_10003 | J166: S901003 | K166: 901003 | M166: 1 | N166: 3 | O166: 5 | P166: 30 | Q166: 1 | R166: 103 | S166: 5 | T166: 724 | U166: 5
A167: 9010035 | B167: 11003 | C167: 150 | D167: 581 | E167: 591 | F167: 玄龟盾 | G167: 前方形成一个土系防御盾，抵挡相当于自身生命上限{0}%的伤害 | H167: 1 | I167: icon_skill_10003 | J167: S901003 | K167: 901003 | M167: 1 | N167: 3 | O167: 6 | P167: 30 | Q167: 1 | R167: 103 | S167: 6 | T167: 724 | U167: 6
A168: 9010036 | B168: 11003 | C168: 160 | D168: 582 | E168: 592 | F168: 玄龟盾 | G168: 前方形成一个土系防御盾，抵挡相当于自身生命上限{0}%的伤害 | H168: 1 | I168: icon_skill_10003 | J168: S901003 | K168: 901003 | M168: 1 | N168: 3 | O168: 7 | P168: 30 | Q168: 1 | R168: 103 | S168: 7 | T168: 724 | U168: 7
A169: 9010037 | B169: 11003 | C169: 170 | D169: 583 | E169: 593 | F169: 玄龟盾 | G169: 前方形成一个土系防御盾，抵挡相当于自身生命上限{0}%的伤害 | H169: 1 | I169: icon_skill_10003 | J169: S901003 | K169: 901003 | M169: 1 | N169: 3 | O169: 8 | P169: 30 | Q169: 1 | R169: 103 | S169: 8 | T169: 724 | U169: 8
A170: 9010038 | B170: 11003 | C170: 180 | D170: 584 | E170: 594 | F170: 玄龟盾 | G170: 前方形成一个土系防御盾，抵挡相当于自身生命上限{0}%的伤害 | H170: 1 | I170: icon_skill_10003 | J170: S901003 | K170: 901003 | M170: 1 | N170: 3 | O170: 9 | P170: 30 | Q170: 1 | R170: 103 | S170: 9 | T170: 724 | U170: 9
A171: 9010039 | B171: 11003 | C171: 190 | D171: 585 | E171: 595 | F171: 玄龟盾 | G171: 前方形成一个土系防御盾，抵挡相当于自身生命上限{0}%的伤害 | H171: 1 | I171: icon_skill_10003 | J171: S901003 | K171: 901003 | M171: 1 | N171: 3 | O171: 10 | P171: 30 | Q171: 1 | R171: 103 | S171: 10 | T171: 724 | U171: 10
A173: =K173*10+O173-1 -> 9010040 | B173: 11004 | C173: 100 | D173: 596 | E173: =D173+10 -> 606 | F173: 九幽镇魂瓶 | G173: 对敌人照成伤害，并随机封锁敌人{0}个法宝，让其{1}秒内不能使用和不能充能 | H173: 1 | I173: icon_skill_10003 | J173: =CONCATENATE("S",K173) -> S901004 | K173: 901004 | M173: 1 | N173: 3 | O173: 1 | P173: 1;9 | Q173: 2 | R173: 101 | S173: 1 | T173: 722 | U173: 1
A174: =K174*10+O174-1 -> 9010041 | B174: 11004 | C174: 110 | D174: =D173+1 -> 597 | E174: =D174+10 -> 607 | F174: 九幽镇魂瓶 | G174: 对敌人照成伤害，并随机封锁敌人{0}个法宝，让其{1}秒内不能使用和不能充能 | H174: 1 | I174: icon_skill_10003 | J174: =CONCATENATE("S",K174) -> S901004 | K174: 901004 | M174: 1 | N174: 3 | O174: 2 | P174: 1;9 | Q174: 2 | R174: 101 | S174: 2 | T174: 722 | U174: 2
A175: 9010042 | B175: 11004 | C175: 120 | D175: =D174+1 -> 598 | E175: 608 | F175: 九幽镇魂瓶 | G175: 对敌人照成伤害，并随机封锁敌人{0}个法宝，让其{1}秒内不能使用和不能充能 | H175: 1 | I175: icon_skill_10003 | J175: S901004 | K175: 901004 | M175: 1 | N175: 3 | O175: 3 | P175: 1;9 | Q175: 2 | R175: 101 | S175: 3 | T175: 722 | U175: 3
A176: 9010043 | B176: 11004 | C176: 130 | D176: 599 | E176: 609 | F176: 九幽镇魂瓶 | G176: 对敌人照成伤害，并随机封锁敌人{0}个法宝，让其{1}秒内不能使用和不能充能 | H176: 1 | I176: icon_skill_10003 | J176: S901004 | K176: 901004 | M176: 1 | N176: 3 | O176: 4 | P176: 1;9 | Q176: 2 | R176: 101 | S176: 4 | T176: 722 | U176: 4
A177: 9010044 | B177: 11004 | C177: 140 | D177: 600 | E177: 610 | F177: 九幽镇魂瓶 | G177: 对敌人照成伤害，并随机封锁敌人{0}个法宝，让其{1}秒内不能使用和不能充能 | H177: 1 | I177: icon_skill_10003 | J177: S901004 | K177: 901004 | M177: 1 | N177: 3 | O177: 5 | P177: 1;9 | Q177: 2 | R177: 101 | S177: 5 | T177: 722 | U177: 5
A178: 9010045 | B178: 11004 | C178: 150 | D178: 601 | E178: 611 | F178: 九幽镇魂瓶 | G178: 对敌人照成伤害，并随机封锁敌人{0}个法宝，让其{1}秒内不能使用和不能充能 | H178: 1 | I178: icon_skill_10003 | J178: S901004 | K178: 901004 | M178: 1 | N178: 3 | O178: 6 | P178: 1;9 | Q178: 2 | R178: 101 | S178: 6 | T178: 722 | U178: 6
A179: 9010046 | B179: 11004 | C179: 160 | D179: 602 | E179: 612 | F179: 九幽镇魂瓶 | G179: 对敌人照成伤害，并随机封锁敌人{0}个法宝，让其{1}秒内不能使用和不能充能 | H179: 1 | I179: icon_skill_10003 | J179: S901004 | K179: 901004 | M179: 1 | N179: 3 | O179: 7 | P179: 1;9 | Q179: 2 | R179: 101 | S179: 7 | T179: 722 | U179: 7
A180: 9010047 | B180: 11004 | C180: 170 | D180: 603 | E180: 613 | F180: 九幽镇魂瓶 | G180: 对敌人照成伤害，并随机封锁敌人{0}个法宝，让其{1}秒内不能使用和不能充能 | H180: 1 | I180: icon_skill_10003 | J180: S901004 | K180: 901004 | M180: 1 | N180: 3 | O180: 8 | P180: 1;9 | Q180: 2 | R180: 101 | S180: 8 | T180: 722 | U180: 8
A181: 9010048 | B181: 11004 | C181: 180 | D181: 604 | E181: 614 | F181: 九幽镇魂瓶 | G181: 对敌人照成伤害，并随机封锁敌人{0}个法宝，让其{1}秒内不能使用和不能充能 | H181: 1 | I181: icon_skill_10003 | J181: S901004 | K181: 901004 | M181: 1 | N181: 3 | O181: 9 | P181: 1;9 | Q181: 2 | R181: 101 | S181: 9 | T181: 722 | U181: 9
A182: 9010049 | B182: 11004 | C182: 190 | D182: 605 | E182: 615 | F182: 九幽镇魂瓶 | G182: 对敌人照成伤害，并随机封锁敌人{0}个法宝，让其{1}秒内不能使用和不能充能 | H182: 1 | I182: icon_skill_10003 | J182: S901004 | K182: 901004 | M182: 1 | N182: 3 | O182: 10 | P182: 1;9 | Q182: 2 | R182: 101 | S182: 10 | T182: 722 | U182: 10
A184: =K184*10+O184-1 -> 9010050 | B184: 11005 | C184: 100 | D184: 616 | E184: =D184+10 -> 626 | F184: 神龙鼎 | G184: 对敌人照成伤害，使敌人五行混乱。敌人的功法每次使用功法都将使用最低灵根属性作为伤害计算，持续{0}秒 | H184: 1 | I184: icon_skill_10003 | J184: =CONCATENATE("S",K184) -> S901005 | K184: 901005 | M184: 1 | N184: 3 | O184: 1 | P184: 9 | Q184: 1 | R184: 102 | S184: 1 | T184: 723 | U184: 1
A185: =K185*10+O185-1 -> 9010051 | B185: 11005 | C185: 110 | D185: =D184+1 -> 617 | E185: =D185+10 -> 627 | F185: 神龙鼎 | G185: 对敌人照成伤害，使敌人五行混乱。敌人的功法每次使用功法都将使用最低灵根属性作为伤害计算，持续{0}秒 | H185: 1 | I185: icon_skill_10003 | J185: =CONCATENATE("S",K185) -> S901005 | K185: 901005 | M185: 1 | N185: 3 | O185: 2 | P185: 9 | Q185: 1 | R185: 102 | S185: 2 | T185: 723 | U185: 2
A186: 9010052 | B186: 11005 | C186: 120 | D186: =D185+1 -> 618 | E186: 628 | F186: 神龙鼎 | G186: 对敌人照成伤害，使敌人五行混乱。敌人的功法每次使用功法都将使用最低灵根属性作为伤害计算，持续{0}秒 | H186: 1 | I186: icon_skill_10003 | J186: S901005 | K186: 901005 | M186: 1 | N186: 3 | O186: 3 | P186: 9 | Q186: 1 | R186: 102 | S186: 3 | T186: 723 | U186: 3
A187: 9010053 | B187: 11005 | C187: 130 | D187: 619 | E187: 629 | F187: 神龙鼎 | G187: 对敌人照成伤害，使敌人五行混乱。敌人的功法每次使用功法都将使用最低灵根属性作为伤害计算，持续{0}秒 | H187: 1 | I187: icon_skill_10003 | J187: S901005 | K187: 901005 | M187: 1 | N187: 3 | O187: 4 | P187: 9 | Q187: 1 | R187: 102 | S187: 4 | T187: 723 | U187: 4
A188: 9010054 | B188: 11005 | C188: 140 | D188: 620 | E188: 630 | F188: 神龙鼎 | G188: 对敌人照成伤害，使敌人五行混乱。敌人的功法每次使用功法都将使用最低灵根属性作为伤害计算，持续{0}秒 | H188: 1 | I188: icon_skill_10003 | J188: S901005 | K188: 901005 | M188: 1 | N188: 3 | O188: 5 | P188: 9 | Q188: 1 | R188: 102 | S188: 5 | T188: 723 | U188: 5
A189: 9010055 | B189: 11005 | C189: 150 | D189: 621 | E189: 631 | F189: 神龙鼎 | G189: 对敌人照成伤害，使敌人五行混乱。敌人的功法每次使用功法都将使用最低灵根属性作为伤害计算，持续{0}秒 | H189: 1 | I189: icon_skill_10003 | J189: S901005 | K189: 901005 | M189: 1 | N189: 3 | O189: 6 | P189: 9 | Q189: 1 | R189: 102 | S189: 6 | T189: 723 | U189: 6
A190: 9010056 | B190: 11005 | C190: 160 | D190: 622 | E190: 632 | F190: 神龙鼎 | G190: 对敌人照成伤害，使敌人五行混乱。敌人的功法每次使用功法都将使用最低灵根属性作为伤害计算，持续{0}秒 | H190: 1 | I190: icon_skill_10003 | J190: S901005 | K190: 901005 | M190: 1 | N190: 3 | O190: 7 | P190: 9 | Q190: 1 | R190: 102 | S190: 7 | T190: 723 | U190: 7
A191: 9010057 | B191: 11005 | C191: 170 | D191: 623 | E191: 633 | F191: 神龙鼎 | G191: 对敌人照成伤害，使敌人五行混乱。敌人的功法每次使用功法都将使用最低灵根属性作为伤害计算，持续{0}秒 | H191: 1 | I191: icon_skill_10003 | J191: S901005 | K191: 901005 | M191: 1 | N191: 3 | O191: 8 | P191: 9 | Q191: 1 | R191: 102 | S191: 8 | T191: 723 | U191: 8
A192: 9010058 | B192: 11005 | C192: 180 | D192: 624 | E192: 634 | F192: 神龙鼎 | G192: 对敌人照成伤害，使敌人五行混乱。敌人的功法每次使用功法都将使用最低灵根属性作为伤害计算，持续{0}秒 | H192: 1 | I192: icon_skill_10003 | J192: S901005 | K192: 901005 | M192: 1 | N192: 3 | O192: 9 | P192: 9 | Q192: 1 | R192: 102 | S192: 9 | T192: 723 | U192: 9
A193: 9010059 | B193: 11005 | C193: 190 | D193: 625 | E193: 635 | F193: 神龙鼎 | G193: 对敌人照成伤害，使敌人五行混乱。敌人的功法每次使用功法都将使用最低灵根属性作为伤害计算，持续{0}秒 | H193: 1 | I193: icon_skill_10003 | J193: S901005 | K193: 901005 | M193: 1 | N193: 3 | O193: 10 | P193: 9 | Q193: 1 | R193: 102 | S193: 10 | T193: 723 | U193: 10
A195: =K195*10+O195-1 -> 9010060 | B195: 11006 | C195: 100 | D195: 636 | E195: =D195+10 -> 646 | F195: 破天斧 | G195: 无视敌人灵根，对敌人造成{0}%伤害，同时让五行伤势+{1} | H195: 1 | I195: icon_skill_10003 | J195: =CONCATENATE("S",K195) -> S901006 | K195: 901006 | M195: 1 | N195: 3 | O195: 1 | P195: 100;5 | Q195: 1 | R195: 103 | S195: 1 | T195: 724 | U195: 1
A196: =K196*10+O196-1 -> 9010061 | B196: 11006 | C196: 110 | D196: =D195+1 -> 637 | E196: =D196+10 -> 647 | F196: 破天斧 | G196: 无视敌人灵根，对敌人造成{0}%伤害，同时让五行伤势+{1} | H196: 1 | I196: icon_skill_10003 | J196: =CONCATENATE("S",K196) -> S901006 | K196: 901006 | M196: 1 | N196: 3 | O196: 2 | P196: 100;5 | Q196: 1 | R196: 103 | S196: 2 | T196: 724 | U196: 2
A197: 9010062 | B197: 11006 | C197: 120 | D197: =D196+1 -> 638 | E197: 648 | F197: 破天斧 | G197: 无视敌人灵根，对敌人造成{0}%伤害，同时让五行伤势+{1} | H197: 1 | I197: icon_skill_10003 | J197: S901006 | K197: 901006 | M197: 1 | N197: 3 | O197: 3 | P197: 100;5 | Q197: 1 | R197: 103 | S197: 3 | T197: 724 | U197: 3
A198: 9010063 | B198: 11006 | C198: 130 | D198: 639 | E198: 649 | F198: 破天斧 | G198: 无视敌人灵根，对敌人造成{0}%伤害，同时让五行伤势+{1} | H198: 1 | I198: icon_skill_10003 | J198: S901006 | K198: 901006 | M198: 1 | N198: 3 | O198: 4 | P198: 100;5 | Q198: 1 | R198: 103 | S198: 4 | T198: 724 | U198: 4
A199: 9010064 | B199: 11006 | C199: 140 | D199: 640 | E199: 650 | F199: 破天斧 | G199: 无视敌人灵根，对敌人造成{0}%伤害，同时让五行伤势+{1} | H199: 1 | I199: icon_skill_10003 | J199: S901006 | K199: 901006 | M199: 1 | N199: 3 | O199: 5 | P199: 100;5 | Q199: 1 | R199: 103 | S199: 5 | T199: 724 | U199: 5
A200: 9010065 | B200: 11006 | C200: 150 | D200: 641 | E200: 651 | F200: 破天斧 | G200: 无视敌人灵根，对敌人造成{0}%伤害，同时让五行伤势+{1} | H200: 1 | I200: icon_skill_10003 | J200: S901006 | K200: 901006 | M200: 1 | N200: 3 | O200: 6 | P200: 100;5 | Q200: 1 | R200: 103 | S200: 6 | T200: 724 | U200: 6
A201: 9010066 | B201: 11006 | C201: 160 | D201: 642 | E201: 652 | F201: 破天斧 | G201: 无视敌人灵根，对敌人造成{0}%伤害，同时让五行伤势+{1} | H201: 1 | I201: icon_skill_10003 | J201: S901006 | K201: 901006 | M201: 1 | N201: 3 | O201: 7 | P201: 100;5 | Q201: 1 | R201: 103 | S201: 7 | T201: 724 | U201: 7
A202: 9010067 | B202: 11006 | C202: 170 | D202: 643 | E202: 653 | F202: 破天斧 | G202: 无视敌人灵根，对敌人造成{0}%伤害，同时让五行伤势+{1} | H202: 1 | I202: icon_skill_10003 | J202: S901006 | K202: 901006 | M202: 1 | N202: 3 | O202: 8 | P202: 100;5 | Q202: 1 | R202: 103 | S202: 8 | T202: 724 | U202: 8
A203: 9010068 | B203: 11006 | C203: 180 | D203: 644 | E203: 654 | F203: 破天斧 | G203: 无视敌人灵根，对敌人造成{0}%伤害，同时让五行伤势+{1} | H203: 1 | I203: icon_skill_10003 | J203: S901006 | K203: 901006 | M203: 1 | N203: 3 | O203: 9 | P203: 100;5 | Q203: 1 | R203: 103 | S203: 9 | T203: 724 | U203: 9
A204: 9010069 | B204: 11006 | C204: 190 | D204: 645 | E204: 655 | F204: 破天斧 | G204: 无视敌人灵根，对敌人造成{0}%伤害，同时让五行伤势+{1} | H204: 1 | I204: icon_skill_10003 | J204: S901006 | K204: 901006 | M204: 1 | N204: 3 | O204: 10 | P204: 100;5 | Q204: 1 | R204: 103 | S204: 10 | T204: 724 | U204: 10
A206: =K206*10+O206-1 -> 9010070 | B206: 11007 | C206: 100 | D206: 656 | E206: =D206+10 -> 666 | F206: 琉璃宝塔 | G206: 对敌人照成水系伤害，封锁敌人筋脉随机{0}个格子持续{1}秒 | H206: 1 | I206: icon_skill_10003 | J206: =CONCATENATE("S",K206) -> S901007 | K206: 901007 | M206: 1 | N206: 3 | O206: 1 | P206: 3;6 | Q206: 2 | R206: 101 | S206: 1 | T206: 722 | U206: 1
A207: =K207*10+O207-1 -> 9010071 | B207: 11007 | C207: 110 | D207: =D206+1 -> 657 | E207: =D207+10 -> 667 | F207: 琉璃宝塔 | G207: 对敌人照成水系伤害，封锁敌人筋脉随机{0}个格子持续{1}秒 | H207: 1 | I207: icon_skill_10003 | J207: =CONCATENATE("S",K207) -> S901007 | K207: 901007 | M207: 1 | N207: 3 | O207: 2 | P207: 3;6 | Q207: 2 | R207: 101 | S207: 2 | T207: 722 | U207: 2
A208: 9010072 | B208: 11007 | C208: 120 | D208: =D207+1 -> 658 | E208: 668 | F208: 琉璃宝塔 | G208: 对敌人照成水系伤害，封锁敌人筋脉随机{0}个格子持续{1}秒 | H208: 1 | I208: icon_skill_10003 | J208: S901007 | K208: 901007 | M208: 1 | N208: 3 | O208: 3 | P208: 3;6 | Q208: 2 | R208: 101 | S208: 3 | T208: 722 | U208: 3
A209: 9010073 | B209: 11007 | C209: 130 | D209: 659 | E209: 669 | F209: 琉璃宝塔 | G209: 对敌人照成水系伤害，封锁敌人筋脉随机{0}个格子持续{1}秒 | H209: 1 | I209: icon_skill_10003 | J209: S901007 | K209: 901007 | M209: 1 | N209: 3 | O209: 4 | P209: 3;6 | Q209: 2 | R209: 101 | S209: 4 | T209: 722 | U209: 4
A210: 9010074 | B210: 11007 | C210: 140 | D210: 660 | E210: 670 | F210: 琉璃宝塔 | G210: 对敌人照成水系伤害，封锁敌人筋脉随机{0}个格子持续{1}秒 | H210: 1 | I210: icon_skill_10003 | J210: S901007 | K210: 901007 | M210: 1 | N210: 3 | O210: 5 | P210: 3;6 | Q210: 2 | R210: 101 | S210: 5 | T210: 722 | U210: 5
A211: 9010075 | B211: 11007 | C211: 150 | D211: 661 | E211: 671 | F211: 琉璃宝塔 | G211: 对敌人照成水系伤害，封锁敌人筋脉随机{0}个格子持续{1}秒 | H211: 1 | I211: icon_skill_10003 | J211: S901007 | K211: 901007 | M211: 1 | N211: 3 | O211: 6 | P211: 3;6 | Q211: 2 | R211: 101 | S211: 6 | T211: 722 | U211: 6
A212: 9010076 | B212: 11007 | C212: 160 | D212: 662 | E212: 672 | F212: 琉璃宝塔 | G212: 对敌人照成水系伤害，封锁敌人筋脉随机{0}个格子持续{1}秒 | H212: 1 | I212: icon_skill_10003 | J212: S901007 | K212: 901007 | M212: 1 | N212: 3 | O212: 7 | P212: 3;6 | Q212: 2 | R212: 101 | S212: 7 | T212: 722 | U212: 7
A213: 9010077 | B213: 11007 | C213: 170 | D213: 663 | E213: 673 | F213: 琉璃宝塔 | G213: 对敌人照成水系伤害，封锁敌人筋脉随机{0}个格子持续{1}秒 | H213: 1 | I213: icon_skill_10003 | J213: S901007 | K213: 901007 | M213: 1 | N213: 3 | O213: 8 | P213: 3;6 | Q213: 2 | R213: 101 | S213: 8 | T213: 722 | U213: 8
A214: 9010078 | B214: 11007 | C214: 180 | D214: 664 | E214: 674 | F214: 琉璃宝塔 | G214: 对敌人照成水系伤害，封锁敌人筋脉随机{0}个格子持续{1}秒 | H214: 1 | I214: icon_skill_10003 | J214: S901007 | K214: 901007 | M214: 1 | N214: 3 | O214: 9 | P214: 3;6 | Q214: 2 | R214: 101 | S214: 9 | T214: 722 | U214: 9
A215: 9010079 | B215: 11007 | C215: 190 | D215: 665 | E215: 675 | F215: 琉璃宝塔 | G215: 对敌人照成水系伤害，封锁敌人筋脉随机{0}个格子持续{1}秒 | H215: 1 | I215: icon_skill_10003 | J215: S901007 | K215: 901007 | M215: 1 | N215: 3 | O215: 10 | P215: 3;6 | Q215: 2 | R215: 101 | S215: 10 | T215: 722 | U215: 10
A217: =K217*10+O217-1 -> 9010080 | B217: 11008 | C217: 100 | D217: 676 | E217: =D217+10 -> 686 | F217: 玉莲守心灯 | G217: 一盏明灯围绕玩家，{0}秒内抵消所有负面效果，每{1}秒触发1次。 | H217: 1 | I217: icon_skill_10003 | J217: =CONCATENATE("S",K217) -> S901008 | K217: 901008 | M217: 1 | N217: 3 | O217: 1 | P217: 6;30 | Q217: 1 | R217: 102 | S217: 1 | T217: 723 | U217: 1
A218: =K218*10+O218-1 -> 9010081 | B218: 11008 | C218: 110 | D218: =D217+1 -> 677 | E218: =D218+10 -> 687 | F218: 玉莲守心灯 | G218: 一盏明灯围绕玩家，{0}秒内抵消所有负面效果，每{1}秒触发1次。 | H218: 1 | I218: icon_skill_10003 | J218: =CONCATENATE("S",K218) -> S901008 | K218: 901008 | M218: 1 | N218: 3 | O218: 2 | P218: 6;30 | Q218: 1 | R218: 102 | S218: 2 | T218: 723 | U218: 2
A219: 9010082 | B219: 11008 | C219: 120 | D219: =D218+1 -> 678 | E219: 688 | F219: 玉莲守心灯 | G219: 一盏明灯围绕玩家，{0}秒内抵消所有负面效果，每{1}秒触发1次。 | H219: 1 | I219: icon_skill_10003 | J219: S901008 | K219: 901008 | M219: 1 | N219: 3 | O219: 3 | P219: 6;30 | Q219: 1 | R219: 102 | S219: 3 | T219: 723 | U219: 3
... 11 more rows

Sheet SkillPowerupConfig
A1: ID | B1: MainPower | C1: SkillPower1 | D1: LevelupItem | E1: LevelupItemNum | F1: PlayerLevelLimit
A2: int | B2: int | C2: float | D2: int[] | E2: int[] | F2: int
A4: 等级 | B4: 功法对拼标准强度 | C4: 标准强度百分比 | D4: 功法升级所需道具 | E4: 攻击升级所需道具数量 | F4: 升级所需境界
A5: 1 | B5: 100 | C5: 100 | D5: 1005 | E5: 200 | F5: 5
A6: 2 | B6: 120 | C6: 110 | D6: 1005 | E6: 300 | F6: 10
A7: 3 | B7: 140 | C7: 120 | D7: 1005 | E7: 400 | F7: 15
A8: 4 | B8: 160 | C8: 130 | D8: 1005 | E8: 500 | F8: 20
A9: 5 | B9: 180 | C9: 140 | D9: 1005 | E9: 600 | F9: 25
A10: 6 | B10: 200 | C10: 150 | D10: 1005 | E10: 700 | F10: 30
A11: 7 | B11: 220 | C11: 160 | D11: 1005 | E11: 800 | F11: 35
A12: 8 | B12: 240 | C12: 170 | D12: 1005 | E12: 900 | F12: 40
A13: 9 | B13: 260 | C13: 180 | D13: 1005 | E13: 1000 | F13: 45
A14: 10 | B14: 280 | C14: 190 | D14: 1005 | E14: 1100 | F14: 50
A15: 11 | B15: 300 | C15: 200 | D15: 1005 | E15: 1200 | F15: 55
A16: 12 | B16: 320 | C16: 210 | D16: 1005 | E16: 1300 | F16: 60
A17: 13 | B17: 340 | C17: 220 | D17: 1005 | E17: 1400 | F17: 65
A18: 14 | B18: 360 | C18: 230 | D18: 1005 | E18: 1500 | F18: 70
A19: 15 | B19: 380 | C19: 240 | D19: 1005 | E19: 1600 | F19: 75
A20: 16 | B20: 400 | C20: 250 | D20: 1005 | E20: 1700 | F20: 80
A21: 17 | B21: 420 | C21: 260 | D21: 1005 | E21: 1800 | F21: 85
A22: 18 | B22: 440 | C22: 270 | D22: 1005 | E22: 1900 | F22: 90
A23: 19 | B23: 460 | C23: 280 | D23: 1005 | E23: 2000 | F23: 95
A24: 20 | B24: 480 | C24: 290 | D24: 1005 | E24: 2100 | F24: 100
A25: 21 | B25: 500 | C25: 300 | D25: 1005 | E25: 2200 | F25: 105
A26: 22 | B26: 520 | C26: 310 | D26: 1005 | E26: 2300 | F26: 110
A27: 23 | B27: 540 | C27: 320 | D27: 1005 | E27: 2400 | F27: 115
A28: 24 | B28: 560 | C28: 330 | D28: 1005 | E28: 2500 | F28: 120
A29: 25 | B29: 580 | C29: 340 | D29: 1005 | E29: 2600 | F29: 125
A30: 26 | B30: 600 | C30: 350 | D30: 1005 | E30: 2700 | F30: 130
A31: 27 | B31: 620 | C31: 360 | D31: 1005 | E31: 2800 | F31: 135
A32: 28 | B32: 640 | C32: 370 | D32: 1005 | E32: 2900 | F32: 140
A33: 29 | B33: 660 | C33: 380 | D33: 1005 | E33: 3000 | F33: 145
A34: 30 | B34: 680 | C34: 390 | D34: 1005 | E34: 3100 | F34: 150
A35: 31 | B35: 700 | C35: 400 | D35: 1005 | E35: 3200 | F35: 155
A36: 32 | B36: 720 | C36: 410 | D36: 1005 | E36: 3300 | F36: 160
A37: 33 | B37: 740 | C37: 420 | D37: 1005 | E37: 3400 | F37: 165
A38: 34 | B38: 760 | C38: 430 | D38: 1005 | E38: 3500 | F38: 170
A39: 35 | B39: 780 | C39: 440 | D39: 1005 | E39: 3600 | F39: 175
A40: 36 | B40: 800 | C40: 450 | D40: 1005 | E40: 3700 | F40: 180
A41: 37 | B41: 820 | C41: 460 | D41: 1005 | E41: 3800 | F41: 185
A42: 38 | B42: 840 | C42: 470 | D42: 1005 | E42: 3900 | F42: 190
A43: 39 | B43: 860 | C43: 480 | D43: 1005 | E43: 4000 | F43: 195
A44: 40 | B44: 880 | C44: 490 | D44: 1005 | E44: 4100 | F44: 200
A45: 41 | B45: 900 | C45: 500 | D45: 1005 | E45: 4200 | F45: 205
A46: 42 | B46: 920 | C46: 510 | D46: 1005 | E46: 4300 | F46: 210
A47: 43 | B47: 940 | C47: 520 | D47: 1005 | E47: 4400 | F47: 215
A48: 44 | B48: 960 | C48: 530 | D48: 1005 | E48: 4500 | F48: 220
A49: 45 | B49: 980 | C49: 540 | D49: 1005 | E49: 4600 | F49: 225
A50: 46 | B50: 1000 | C50: 550 | D50: 1005 | E50: 4700 | F50: 230
A51: 47 | B51: 1020 | C51: 560 | D51: 1005 | E51: 4800 | F51: 235
A52: 48 | B52: 1040 | C52: 570 | D52: 1005 | E52: 4900 | F52: 240
A53: 49 | B53: 1060 | C53: 580 | D53: 1005 | E53: 5000 | F53: 245
A54: 50 | B54: 1080 | C54: 590 | D54: 1005 | E54: 5100 | F54: 250
A55: 51 | B55: 1100 | C55: 600 | D55: 1005 | E55: 5200 | F55: 255
A56: 52 | B56: 1120 | C56: 610 | D56: 1005 | E56: 5300 | F56: 260
A57: 53 | B57: 1140 | C57: 620 | D57: 1005 | E57: 5400 | F57: 265
A58: 54 | B58: 1160 | C58: 630 | D58: 1005 | E58: 5500 | F58: 270
A59: 55 | B59: 1180 | C59: 640 | D59: 1005 | E59: 5600 | F59: 275
A60: 56 | B60: 1200 | C60: 650 | D60: 1005 | E60: 5700 | F60: 280
A61: 57 | B61: 1220 | C61: 660 | D61: 1005 | E61: 5800 | F61: 285
A62: 58 | B62: 1240 | C62: 670 | D62: 1005 | E62: 5900 | F62: 290
A63: 59 | B63: 1260 | C63: 680 | D63: 1005 | E63: 6000 | F63: 295
A64: 60 | B64: 1280 | C64: 690 | D64: -1 | E64: -1 | F64: 300

Sheet SkillConstant
A1: ID | C1: SkilltoPieceNum | D1: SkillPromoteNeedPieceNum
A2: int | C2: int[] | D2: int[]
C4: 重复功法自动转碎片的数量 | D4: 功法升到对应星级所需碎片数量
A5: 1 | C5: =_xlfn.TEXTJOIN(";",1,C8:C17) -> 1;5;20;100;200;300;500;700;1000;1300 | D5: =_xlfn.TEXTJOIN(";",1,1,D8:D16) -> 1;4;15;80;100;100;200;200;300;300
E6: 升星所需数量
C7: 碎片数量 | D7: 升星所需碎片 | E7: 1星 | F7: 2星 | G7: 3星 | H7: 4星 | I7: 权重 | J7: 标准概率 | K7: 预设概率
B8: 1 | C8: 1 | D8: =C9-C8 -> 4 | E8: =D8/C$8 -> 4 | I8: =C$8*C$9*C$10*C$11/C8 -> 10000 | J8: =I8/SUM(I$8:I$11) -> 0.7936507937 | K8: =1-SUM(K9:K11) -> 0.825
B9: 2 | C9: 5 | D9: =C10-C9 -> 15 | E9: =D9/C$8 -> 15 | F9: =D9/C$9 -> 3 | I9: =C$8*C$9*C$10*C$11/C9 -> 2000 | J9: =I9/SUM(I$8:I$11) -> 0.1587301587 | K9: 0.14 | L9: =K9/J9 -> 0.882
B10: 3 | C10: 20 | D10: 80 | E10: 80 | F10: =D10/C$9 -> 16 | G10: =D10/C$10 -> 4 | I10: 500 | J10: 0.03968253968 | K10: 0.03 | L10: 0.756
B11: 4 | C11: 100 | D11: 100 | E11: 100 | F11: 20 | G11: =D11/C$10 -> 5 | H11: =D11/C$11 -> 1 | I11: 100 | J11: 0.007936507937 | K11: 0.005 | L11: =K11/J11 -> 0.63
B12: 5 | C12: 200 | D12: 100 | E12: 100 | F12: 20 | G12: 5 | H12: =D12/C$11 -> 1
B13: 6 | C13: =C12+D12 -> 300 | D13: 200 | E13: 200 | F13: 40 | G13: 10 | H13: 2
B14: 7 | C14: =C13+D13 -> 500 | D14: 200 | E14: 200 | F14: 40 | G14: 10 | H14: 2
B15: 8 | C15: 700 | D15: 300 | E15: 300 | F15: 60 | G15: 15 | H15: 3
B16: 9 | C16: 1000 | D16: 300 | E16: 300 | F16: 60 | G16: 15 | H16: 3
B17: 10 | C17: 1300
E18: =SUM(E8:E16)+1 -> 1300 | F18: =SUM(F8:F16)+1 -> 260 | G18: =SUM(G8:G16)+1 -> 65 | H18: =SUM(H8:H16)+1 -> 13

Sheet 技能设计
